Workbook

Sheet P(1)
A1: 1) Create a table that extracts the 5 largest values from the Sales column. 2) Create a table that extracts the 5 smallest values from the COGS column. 3) Create a table that calculates the average Units, Sales and COGS for each Sales Rep.
A4: Sales Rep | B4: Units | C4: Sales | D4: COGS
A5: Richard | B5: 255 | C5: 255648 | D5: 191736
A6: Manavbir | B6: 470 | C6: 470564 | D6: 385862.48
A7: Janita | B7: 195 | C7: 195823 | D7: 148825.48
A8: Mitchell | B8: 388 | C8: 388300 | D8: 349470
A9: Christina | B9: 223 | C9: 223659 | D9: 185636.97
A10: Nakyun | B10: 291 | C10: 291969 | D10: 239414.58
A11: Mitchell | B11: 239 | C11: 239386 | D11: 172357.92
A12: Daniel | B12: 398 | C12: 398538 | D12: 294918.12
A13: Mi | B13: 132 | C13: 132446 | D13: 108605.72
A14: Richard | B14: 221 | C14: 221452 | D14: 190448.72
A15: Kaur | B15: 344 | C15: 344551 | D15: 299759.37
A16: Ewelina | B16: 466 | C16: 466662 | D16: 331330.02
A17: Ewelina | B17: 281 | C17: 281412 | D17: 236386.08
A18: Mitchell | B18: 167 | C18: 167214 | D18: 142131.9
A19: Nelia | B19: 394 | C19: 394341 | D19: 295755.75
A20: Craig | B20: 497 | C20: 497678 | D20: 432979.86
A21: Carol | B21: 383 | C21: 383583 | D21: 268508.1
A22: Nelia | B22: 365 | C22: 365081 | D22: 277461.56
A23: Denise | B23: 225 | C23: 225682 | D23: 182802.42
A24: Richard | B24: 360 | C24: 360377 | D24: 291905.37
A25: Nelia | B25: 458 | C25: 458756 | D25: 399117.72
A26: Nelia | B26: 432 | C26: 432320 | D26: 319916.8
A27: Richard | B27: 314 | C27: 314469 | D27: 283022.1
A28: Sarah | B28: 180 | C28: 180252 | D28: 151411.68
A29: Nakyun | B29: 160 | C29: 160859 | D29: 144773.1
A30: Janita | B30: 193 | C30: 193122 | D30: 171878.58
A31: Kaur | B31: 155 | C31: 155741 | D31: 124592.8
A32: Shari | B32: 96 | C32: 96704 | D32: 76396.16
A33: Shari | B33: 390 | C33: 390366 | D33: 324003.78
A34: Yla-Katrina | B34: 185 | C34: 185196 | D34: 162972.48
A35: Denise | B35: 498 | C35: 498495 | D35: 378856.2
A36: Richard | B36: 209 | C36: 209973 | D36: 149080.83
A37: Carol | B37: 250 | C37: 250643 | D37: 223072.27
A38: Michelle | B38: 418 | C38: 418673 | D38: 297257.83
A39: Nakyun | B39: 193 | C39: 193274 | D39: 154619.2
A40: Ewelina | B40: 255 | C40: 255856 | D40: 184216.32
A41: Janita | B41: 315 | C41: 315776 | D41: 258936.32
A42: Nelia | B42: 241 | C42: 241548 | D42: 178745.52
A43: Mi | B43: 125 | C43: 125433 | D43: 100346.4
A44: Nakyun | B44: 372 | C44: 372365 | D44: 301615.65
A45: Manavbir | B45: 309 | C45: 309851 | D45: 232388.25
A46: Janita | B46: 266 | C46: 266403 | D46: 197138.22
A47: Manavbir | B47: 448 | C47: 448224 | D47: 345132.48
A48: Shari | B48: 109 | C48: 109997 | D48: 96797.36
A49: Manavbir | B49: 53 | C49: 53865 | D49: 38244.15
A50: Mi | B50: 105 | C50: 105027 | D50: 79820.52
A51: Craig | B51: 211 | C51: 211577 | D51: 158682.75
A52: Nelia | B52: 286 | C52: 286226 | D52: 228980.8
A53: Shari | B53: 481 | C53: 481771 | D53: 351692.83
A54: Michael | B54: 266 | C54: 266460 | D54: 210503.4
A55: Elain | B55: 328 | C55: 328934 | D55: 263147.2
A56: Nelia | B56: 194 | C56: 194843 | D56: 155874.4
A57: Gianna | B57: 366 | C57: 366227 | D57: 267345.71
A58: Denise | B58: 108 | C58: 108046 | D58: 86436.8
A59: Denise | B59: 251 | C59: 251015 | D59: 208342.45
A60: Jason | B60: 315 | C60: 315040 | D60: 255182.4
A61: Craig | B61: 458 | C61: 458925 | D61: 357961.5
A62: Richard | B62: 80 | C62: 80911 | D62: 64728.8
A63: Craig | B63: 109 | C63: 109871 | D63: 94489.06
A64: Debra | B64: 182 | C64: 182009 | D64: 152887.56
A65: Ewelina | B65: 476 | C65: 476420 | D65: 352550.8
A66: Manavbir | B66: 53 | C66: 53912 | D66: 46903.44
A67: Richard | B67: 307 | C67: 307166 | D67: 239589.48
A68: Sarah | B68: 77 | C68: 77586 | D68: 66723.96
A69: Gianna | B69: 334 | C69: 334613 | D69: 247613.62
A70: Nelia | B70: 176 | C70: 176270 | D70: 142778.7
A71: Sarah | B71: 361 | C71: 361529 | D71: 300069.07
A72: Manavbir | B72: 364 | C72: 364777 | D72: 284526.06
A73: Kaur | B73: 464 | C73: 464402 | D73: 366877.58
A74: Elain | B74: 118 | C74: 118912 | D74: 95129.6
A75: Gianna | B75: 412 | C75: 412097 | D75: 313193.72
A76: Debra | B76: 245 | C76: 245822 | D76: 186824.72
A77: Jason | B77: 112 | C77: 112747 | D77: 84560.25
A78: Shari | B78: 262 | C78: 262648 | D78: 217997.84
A79: Nelia | B79: 404 | C79: 404358 | D79: 363922.2
A80: Sarah | B80: 364 | C80: 364952 | D80: 310209.2
A81: Jason | B81: 146 | C81: 146567 | D81: 115787.93
A82: Mitchell | B82: 232 | C82: 232300 | D82: 199778
A83: Gianna | B83: 397 | C83: 397755 | D83: 322181.55
A84: Jason | B84: 329 | C84: 329310 | D84: 240396.3
A85: Michael | B85: 186 | C85: 186162 | D85: 141483.12
A86: Sarah | B86: 479 | C86: 479524 | D86: 426776.36
A87: Richard | B87: 261 | C87: 261803 | D87: 188498.16
A88: Sarah | B88: 197 | C88: 197409 | D88: 159901.29
A89: Gianna | B89: 224 | C89: 224385 | D89: 166044.9
A90: Mi | B90: 449 | C90: 449644 | D90: 368708.08
A91: Sarah | B91: 308 | C91: 308693 | D91: 262389.05
A92: Michael | B92: 68 | C92: 68480 | D92: 54099.2
A93: Yla-Katrina | B93: 151 | C93: 151640 | D93: 119795.6
A94: Christina | B94: 189 | C94: 189921 | D94: 148138.38
A95: Craig | B95: 348 | C95: 348411 | D95: 271760.58
A96: Mitchell | B96: 321 | C96: 321917 | D96: 244656.92
A97: Mi | B97: 333 | C97: 333409 | D97: 290065.83
A98: Craig | B98: 451 | C98: 451663 | D98: 334230.62
A99: Mitchell | B99: 325 | C99: 325432 | D99: 279871.52
A100: Mi | B100: 345 | C100: 345917 | D100: 266356.09
A101: Nakyun | B101: 311 | C101: 311405 | D101: 239781.85
A102: Nelia | B102: 136 | C102: 136662 | D102: 117529.32
A103: Sarah | B103: 320 | C103: 320822 | D103: 282323.36
A104: Manavbir | B104: 458 | C104: 458772 | D104: 330315.84
A105: Mi | B105: 499 | C105: 499040 | D105: 384260.8
A106: Elain | B106: 192 | C106: 192618 | D106: 142537.32
A107: Mi | B107: 469 | C107: 469848 | D107: 366481.44
A108: Carol | B108: 230 | C108: 230473 | D108: 161331.1
A109: Nakyun | B109: 108 | C109: 108680 | D109: 76076
A110: Michael | B110: 64 | C110: 64450 | D110: 50271
A111: Kaur | B111: 77 | C111: 77782 | D111: 63781.24
A112: Mitchell | B112: 98 | C112: 98640 | D112: 79898.4
A113: Sykes | B113: 430 | C113: 430742 | D113: 318749.08
A114: Carol | B114: 384 | C114: 384922 | D114: 311786.82
A115: Mansa | B115: 110 | C115: 110594 | D115: 80733.62
A116: Richard | B116: 300 | C116: 300987 | D116: 225740.25
A117: Sykes | B117: 479 | C117: 479494 | D117: 388390.14
A118: Christina | B118: 195 | C118: 195218 | D118: 163983.12
A119: Jason | B119: 124 | C119: 124127 | D119: 89371.44
A120: Sarah | B120: 423 | C120: 423292 | D120: 330167.76
A121: Mitchell | B121: 487 | C121: 487970 | D121: 370857.2
A122: Mitchell | B122: 159 | C122: 159752 | D122: 121411.52
A123: Debra | B123: 187 | C123: 187293 | D123: 146088.54
A124: Manavbir | B124: 123 | C124: 123949 | D124: 110314.61
A125: Nakyun | B125: 370 | C125: 370610 | D125: 311312.4
A126: Michelle | B126: 287 | C126: 287075 | D126: 252626
A127: Denise | B127: 312 | C127: 312079 | D127: 271508.73
A128: Mitchell | B128: 116 | C128: 116810 | D128: 105129
A129: Nelia | B129: 380 | C129: 380051 | D129: 334444.88
A130: Mitchell | B130: 155 | C130: 155187 | D130: 121045.86
A131: Michelle | B131: 199 | C131: 199685 | D131: 145770.05
A132: Carol | B132: 117 | C132: 117887 | D132: 106098.3
A133: Christina | B133: 343 | C133: 343726 | D133: 302478.88
A134: Nakyun | B134: 391 | C134: 391203 | D134: 309050.37
A135: Carol | B135: 386 | C135: 386138 | D135: 305049.02
A136: Nelia | B136: 269 | C136: 269412 | D136: 242470.8
A137: Michelle | B137: 400 | C137: 400025 | D137: 340021.25
A138: Mansa | B138: 134 | C138: 134024 | D138: 120621.6
A139: Nelia | B139: 368 | C139: 368591 | D139: 298558.71
A140: Yla-Katrina | B140: 310 | C140: 310932 | D140: 251854.92
A141: Mi | B141: 407 | C141: 407700 | D141: 346545
A142: Jason | B142: 418 | C142: 418121 | D142: 330315.59
A143: Richard | B143: 390 | C143: 390658 | D143: 292993.5
A144: Daniel | B144: 360 | C144: 360778 | D144: 274191.28
A145: Janita | B145: 334 | C145: 334608 | D145: 267686.4
A146: Ewelina | B146: 130 | C146: 130197 | D146: 108063.51
A147: Denise | B147: 97 | C147: 97429 | D147: 86711.81
A148: Janita | B148: 349 | C148: 349386 | D148: 279508.8
A149: Christina | B149: 180 | C149: 180077 | D149: 149463.91
A150: Sykes | B150: 256 | C150: 256472 | D150: 192354
A151: Gianna | B151: 223 | C151: 223812 | D151: 161144.64
A152: Ewelina | B152: 112 | C152: 112375 | D152: 97766.25
A153: Michelle | B153: 436 | C153: 436654 | D153: 379888.98
A154: Kaur | B154: 288 | C154: 288949 | D154: 245606.65
A155: Gianna | B155: 277 | C155: 277126 | D155: 193988.2
A156: Michael | B156: 457 | C156: 457431 | D156: 361370.49
A157: Jason | B157: 422 | C157: 422806 | D157: 295964.2
A158: Craig | B158: 268 | C158: 268910 | D158: 204371.6
A159: Richard | B159: 125 | C159: 125545 | D159: 100436
A160: Denise | B160: 247 | C160: 247754 | D160: 203158.28
A161: Michael | B161: 190 | C161: 190321 | D161: 156063.22
A162: Kaur | B162: 432 | C162: 432206 | D162: 324154.5
A163: Michael | B163: 363 | C163: 363781 | D163: 265560.13
A164: Jason | B164: 318 | C164: 318417 | D164: 241996.92
A165: Yla-Katrina | B165: 420 | C165: 420671 | D165: 378603.9
A166: Nakyun | B166: 465 | C166: 465031 | D166: 334822.32
A167: Mitchell | B167: 84 | C167: 84744 | D167: 76269.6
A168: Sykes | B168: 261 | C168: 261747 | D168: 183222.9
A169: Mi | B169: 181 | C169: 181856 | D169: 152759.04
A170: Michelle | B170: 56 | C170: 56438 | D170: 42328.5
A171: Kaur | B171: 136 | C171: 136789 | D171: 98488.08
A172: Mitchell | B172: 392 | C172: 392462 | D172: 302195.74
A173: Shari | B173: 120 | C173: 120267 | D173: 93808.26
A174: Mansa | B174: 398 | C174: 398475 | D174: 314795.25
A175: Carol | B175: 57 | C175: 57979 | D175: 42904.46
A176: Ewelina | B176: 317 | C176: 317917 | D176: 247975.26
A177: Carol | B177: 404 | C177: 404822 | D177: 336002.26
A178: Denise | B178: 222 | C178: 222636 | D178: 182561.52
A179: Daniel | B179: 230 | C179: 230878 | D179: 173158.5
A180: Yla-Katrina | B180: 312 | C180: 312560 | D180: 231294.4
A181: Carol | B181: 245 | C181: 245278 | D181: 210939.08
A182: Mi | B182: 356 | C182: 356267 | D182: 302826.95
A183: Sarah | B183: 402 | C183: 402983 | D183: 306267.08
A184: Ewelina | B184: 218 | C184: 218463 | D184: 192247.44
A185: Denise | B185: 128 | C185: 128214 | D185: 114110.46
A186: Debra | B186: 60 | C186: 60092 | D186: 51078.2
A187: Janita | B187: 129 | C187: 129953 | D187: 111759.58
A188: Nakyun | B188: 88 | C188: 88690 | D188: 78047.2
A189: Craig | B189: 329 | C189: 329605 | D189: 286756.35
A190: Kaur | B190: 403 | C190: 403284 | D190: 306495.84
A191: Jason | B191: 250 | C191: 250794 | D191: 223206.66
A192: Michelle | B192: 438 | C192: 438743 | D192: 377318.98
A193: Yla-Katrina | B193: 310 | C193: 310385 | D193: 266931.1
A194: Craig | B194: 498 | C194: 498670 | D194: 378989.2
A195: Yla-Katrina | B195: 408 | C195: 408237 | D195: 306177.75
A196: Kaur | B196: 284 | C196: 284189 | D196: 213141.75
A197: Carol | B197: 75 | C197: 75653 | D197: 55226.69
A198: Daniel | B198: 140 | C198: 140278 | D198: 99597.38
A199: Elain | B199: 322 | C199: 322466 | D199: 248298.82
A200: Richard | B200: 128 | C200: 128228 | D200: 92324.16
A201: Mi | B201: 280 | C201: 280569 | D201: 244095.03
A202: Yla-Katrina | B202: 388 | C202: 388044 | D202: 341478.72
... 991 more rows

Sheet P(1an) (hidden)
A1: 1) Create a table that extracts the 5 largest values from the Sales column. 2) Create a table that extracts the 5 smallest values from the COGS column. 3) Create a table that calculates the average Units, Sales and COGS for each Sales Rep.
J2: Average calculations
F3: 5 | H3: 5 | J3: =A4 -> Sales Rep | K3: =B4 -> Units | L3: =C4 -> Sales | M3: =D4 -> COGS | P3: Row Labels | Q3: Average of Units | R3: Average of Sales | S3: Average of COGS
A4: Sales Rep | B4: Units | C4: Sales | D4: COGS | F4: =F3&" largest Sales" -> 5 largest Sales | H4: =H3&" smallest COGS" -> 5 smallest COGS | J4: Carol | K4: =AVERAGEIF($A$5:$A$1193,$J4,B$5:B$1193) -> 265.1276596 | L4: =AVERAGEIF($A$5:$A$1193,$J4,C$5:C$1193) -> 265632.7234 | M4: =AVERAGEIF($A$5:$A$1193,$J4,D$5:D$1193) -> 215322.1862 | P4: Carol | Q4: 265.1276596 | R4: 265632.7234 | S4: 215322.1862
A5: Richard | B5: 255 | C5: 255648 | D5: 191736 | F5: =LARGE($C$5:$C$1193,ROWS(F$5:F5)) -> 499782 | H5: =SMALL($D$5:$D$1193,ROWS(H$5:H5)) -> 36838.8 | J5: Christina | K5: =AVERAGEIF($A$5:$A$1193,$J5,B$5:B$1193) -> 302.3181818 | L5: =AVERAGEIF($A$5:$A$1193,$J5,C$5:C$1193) -> 302797.3409 | M5: =AVERAGEIF($A$5:$A$1193,$J5,D$5:D$1193) -> 239360.1716 | P5: Christina | Q5: 302.3181818 | R5: 302797.3409 | S5: 239360.1716
A6: Manavbir | B6: 470 | C6: 470564 | D6: 385862.48 | F6: =LARGE($C$5:$C$1193,ROWS(F$5:F6)) -> 499729 | H6: =SMALL($D$5:$D$1193,ROWS(H$5:H6)) -> 38155.8 | J6: Craig | K6: =AVERAGEIF($A$5:$A$1193,$J6,B$5:B$1193) -> 284.48 | L6: =AVERAGEIF($A$5:$A$1193,$J6,C$5:C$1193) -> 285004.74 | M6: =AVERAGEIF($A$5:$A$1193,$J6,D$5:D$1193) -> 231129.2512 | P6: Craig | Q6: 284.48 | R6: 285004.74 | S6: 231129.2512
A7: Janita | B7: 195 | C7: 195823 | D7: 148825.48 | F7: =LARGE($C$5:$C$1193,ROWS(F$5:F7)) -> 499637 | H7: =SMALL($D$5:$D$1193,ROWS(H$5:H7)) -> 38244.15 | J7: Daniel | K7: =AVERAGEIF($A$5:$A$1193,$J7,B$5:B$1193) -> 278.6 | L7: =AVERAGEIF($A$5:$A$1193,$J7,C$5:C$1193) -> 279123.9333 | M7: =AVERAGEIF($A$5:$A$1193,$J7,D$5:D$1193) -> 221473.608 | P7: Daniel | Q7: 278.6 | R7: 279123.9333 | S7: 221473.608
A8: Mitchell | B8: 388 | C8: 388300 | D8: 349470 | F8: =LARGE($C$5:$C$1193,ROWS(F$5:F8)) -> 499245 | H8: =SMALL($D$5:$D$1193,ROWS(H$5:H8)) -> 39392.93 | J8: Debra | K8: =AVERAGEIF($A$5:$A$1193,$J8,B$5:B$1193) -> 287.2653061 | L8: =AVERAGEIF($A$5:$A$1193,$J8,C$5:C$1193) -> 287701.0408 | M8: =AVERAGEIF($A$5:$A$1193,$J8,D$5:D$1193) -> 228565.802 | P8: Debra | Q8: 287.2653061 | R8: 287701.0408 | S8: 228565.802
A9: Christina | B9: 223 | C9: 223659 | D9: 185636.97 | F9: =LARGE($C$5:$C$1193,ROWS(F$5:F9)) -> 499122 | H9: =SMALL($D$5:$D$1193,ROWS(H$5:H9)) -> 39589.27 | J9: Denise | K9: =AVERAGEIF($A$5:$A$1193,$J9,B$5:B$1193) -> 255.75 | L9: =AVERAGEIF($A$5:$A$1193,$J9,C$5:C$1193) -> 256240.625 | M9: =AVERAGEIF($A$5:$A$1193,$J9,D$5:D$1193) -> 206428.9932 | P9: Denise | Q9: 255.75 | R9: 256240.625 | S9: 206428.9932
A10: Nakyun | B10: 291 | C10: 291969 | D10: 239414.58 | J10: Elain | K10: =AVERAGEIF($A$5:$A$1193,$J10,B$5:B$1193) -> 251.2058824 | L10: =AVERAGEIF($A$5:$A$1193,$J10,C$5:C$1193) -> 251682.4706 | M10: =AVERAGEIF($A$5:$A$1193,$J10,D$5:D$1193) -> 196649.4509 | P10: Elain | Q10: 251.2058824 | R10: 251682.4706 | S10: 196649.4509
A11: Mitchell | B11: 239 | C11: 239386 | D11: 172357.92 | J11: Ewelina | K11: =AVERAGEIF($A$5:$A$1193,$J11,B$5:B$1193) -> 290.2857143 | L11: =AVERAGEIF($A$5:$A$1193,$J11,C$5:C$1193) -> 290751.2143 | M11: =AVERAGEIF($A$5:$A$1193,$J11,D$5:D$1193) -> 234879.0238 | P11: Ewelina | Q11: 290.2857143 | R11: 290751.2143 | S11: 234879.0238
A12: Daniel | B12: 398 | C12: 398538 | D12: 294918.12 | J12: Gianna | K12: =AVERAGEIF($A$5:$A$1193,$J12,B$5:B$1193) -> 292.7727273 | L12: =AVERAGEIF($A$5:$A$1193,$J12,C$5:C$1193) -> 293199.3864 | M12: =AVERAGEIF($A$5:$A$1193,$J12,D$5:D$1193) -> 234975.5761 | P12: Gianna | Q12: 292.7727273 | R12: 293199.3864 | S12: 234975.5761
A13: Mi | B13: 132 | C13: 132446 | D13: 108605.72 | J13: Janita | K13: =AVERAGEIF($A$5:$A$1193,$J13,B$5:B$1193) -> 264.3243243 | L13: =AVERAGEIF($A$5:$A$1193,$J13,C$5:C$1193) -> 264790.4865 | M13: =AVERAGEIF($A$5:$A$1193,$J13,D$5:D$1193) -> 211860.5443 | P13: Janita | Q13: 264.3243243 | R13: 264790.4865 | S13: 211860.5443
A14: Richard | B14: 221 | C14: 221452 | D14: 190448.72 | J14: Jason | K14: =AVERAGEIF($A$5:$A$1193,$J14,B$5:B$1193) -> 270.4318182 | L14: =AVERAGEIF($A$5:$A$1193,$J14,C$5:C$1193) -> 270937.75 | M14: =AVERAGEIF($A$5:$A$1193,$J14,D$5:D$1193) -> 217027.1809 | P14: Jason | Q14: 270.4318182 | R14: 270937.75 | S14: 217027.1809
A15: Kaur | B15: 344 | C15: 344551 | D15: 299759.37 | J15: Kaur | K15: =AVERAGEIF($A$5:$A$1193,$J15,B$5:B$1193) -> 292.8235294 | L15: =AVERAGEIF($A$5:$A$1193,$J15,C$5:C$1193) -> 293339.7255 | M15: =AVERAGEIF($A$5:$A$1193,$J15,D$5:D$1193) -> 233210.068 | P15: Kaur | Q15: 292.8235294 | R15: 293339.7255 | S15: 233210.068
A16: Ewelina | B16: 466 | C16: 466662 | D16: 331330.02 | J16: Manavbir | K16: =AVERAGEIF($A$5:$A$1193,$J16,B$5:B$1193) -> 257.0212766 | L16: =AVERAGEIF($A$5:$A$1193,$J16,C$5:C$1193) -> 257520.3404 | M16: =AVERAGEIF($A$5:$A$1193,$J16,D$5:D$1193) -> 203753.0789 | P16: Manavbir | Q16: 257.0212766 | R16: 257520.3404 | S16: 203753.0789
A17: Ewelina | B17: 281 | C17: 281412 | D17: 236386.08 | J17: Mansa | K17: =AVERAGEIF($A$5:$A$1193,$J17,B$5:B$1193) -> 256.0444444 | L17: =AVERAGEIF($A$5:$A$1193,$J17,C$5:C$1193) -> 256590.4222 | M17: =AVERAGEIF($A$5:$A$1193,$J17,D$5:D$1193) -> 207107.2424 | P17: Mansa | Q17: 256.0444444 | R17: 256590.4222 | S17: 207107.2424
A18: Mitchell | B18: 167 | C18: 167214 | D18: 142131.9 | J18: Mi | K18: =AVERAGEIF($A$5:$A$1193,$J18,B$5:B$1193) -> 279.2857143 | L18: =AVERAGEIF($A$5:$A$1193,$J18,C$5:C$1193) -> 279715.1429 | M18: =AVERAGEIF($A$5:$A$1193,$J18,D$5:D$1193) -> 223119.9298 | P18: Mi | Q18: 279.2857143 | R18: 279715.1429 | S18: 223119.9298
A19: Nelia | B19: 394 | C19: 394341 | D19: 295755.75 | J19: Michael | K19: =AVERAGEIF($A$5:$A$1193,$J19,B$5:B$1193) -> 291.7608696 | L19: =AVERAGEIF($A$5:$A$1193,$J19,C$5:C$1193) -> 292285.087 | M19: =AVERAGEIF($A$5:$A$1193,$J19,D$5:D$1193) -> 231380.6013 | P19: Michael | Q19: 291.7608696 | R19: 292285.087 | S19: 231380.6013
A20: Craig | B20: 497 | C20: 497678 | D20: 432979.86 | J20: Michelle | K20: =AVERAGEIF($A$5:$A$1193,$J20,B$5:B$1193) -> 285.3043478 | L20: =AVERAGEIF($A$5:$A$1193,$J20,C$5:C$1193) -> 285800.2826 | M20: =AVERAGEIF($A$5:$A$1193,$J20,D$5:D$1193) -> 227866.8154 | P20: Michelle | Q20: 285.3043478 | R20: 285800.2826 | S20: 227866.8154
A21: Carol | B21: 383 | C21: 383583 | D21: 268508.1 | J21: Mitchell | K21: =AVERAGEIF($A$5:$A$1193,$J21,B$5:B$1193) -> 264.1818182 | L21: =AVERAGEIF($A$5:$A$1193,$J21,C$5:C$1193) -> 264602.5818 | M21: =AVERAGEIF($A$5:$A$1193,$J21,D$5:D$1193) -> 211291.0315 | P21: Mitchell | Q21: 264.1818182 | R21: 264602.5818 | S21: 211291.0315
A22: Nelia | B22: 365 | C22: 365081 | D22: 277461.56 | J22: Nakyun | K22: =AVERAGEIF($A$5:$A$1193,$J22,B$5:B$1193) -> 285.6538462 | L22: =AVERAGEIF($A$5:$A$1193,$J22,C$5:C$1193) -> 286098.5769 | M22: =AVERAGEIF($A$5:$A$1193,$J22,D$5:D$1193) -> 227180.1365 | P22: Nakyun | Q22: 285.6538462 | R22: 286098.5769 | S22: 227180.1365
A23: Denise | B23: 225 | C23: 225682 | D23: 182802.42 | J23: Nelia | K23: =AVERAGEIF($A$5:$A$1193,$J23,B$5:B$1193) -> 291.4423077 | L23: =AVERAGEIF($A$5:$A$1193,$J23,C$5:C$1193) -> 291873.4808 | M23: =AVERAGEIF($A$5:$A$1193,$J23,D$5:D$1193) -> 233354.1238 | P23: Nelia | Q23: 291.4423077 | R23: 291873.4808 | S23: 233354.1238
A24: Richard | B24: 360 | C24: 360377 | D24: 291905.37 | J24: Richard | K24: =AVERAGEIF($A$5:$A$1193,$J24,B$5:B$1193) -> 242.7647059 | L24: =AVERAGEIF($A$5:$A$1193,$J24,C$5:C$1193) -> 243289.1373 | M24: =AVERAGEIF($A$5:$A$1193,$J24,D$5:D$1193) -> 192178.3282 | P24: Richard | Q24: 242.7647059 | R24: 243289.1373 | S24: 192178.3282
A25: Nelia | B25: 458 | C25: 458756 | D25: 399117.72 | J25: Sarah | K25: =AVERAGEIF($A$5:$A$1193,$J25,B$5:B$1193) -> 278.1333333 | L25: =AVERAGEIF($A$5:$A$1193,$J25,C$5:C$1193) -> 278654.7667 | M25: =AVERAGEIF($A$5:$A$1193,$J25,D$5:D$1193) -> 227801.991 | P25: Sarah | Q25: 278.1333333 | R25: 278654.7667 | S25: 227801.991
A26: Nelia | B26: 432 | C26: 432320 | D26: 319916.8 | J26: Shari | K26: =AVERAGEIF($A$5:$A$1193,$J26,B$5:B$1193) -> 290.9574468 | L26: =AVERAGEIF($A$5:$A$1193,$J26,C$5:C$1193) -> 291471.4255 | M26: =AVERAGEIF($A$5:$A$1193,$J26,D$5:D$1193) -> 229299.3738 | P26: Shari | Q26: 290.9574468 | R26: 291471.4255 | S26: 229299.3738
A27: Richard | B27: 314 | C27: 314469 | D27: 283022.1 | J27: Sykes | K27: =AVERAGEIF($A$5:$A$1193,$J27,B$5:B$1193) -> 244.6222222 | L27: =AVERAGEIF($A$5:$A$1193,$J27,C$5:C$1193) -> 245147.7778 | M27: =AVERAGEIF($A$5:$A$1193,$J27,D$5:D$1193) -> 192492.2273 | P27: Sykes | Q27: 244.6222222 | R27: 245147.7778 | S27: 192492.2273
A28: Sarah | B28: 180 | C28: 180252 | D28: 151411.68 | J28: Yla-Katrina | K28: =AVERAGEIF($A$5:$A$1193,$J28,B$5:B$1193) -> 308.3166667 | L28: =AVERAGEIF($A$5:$A$1193,$J28,C$5:C$1193) -> 308826.9333 | M28: =AVERAGEIF($A$5:$A$1193,$J28,D$5:D$1193) -> 247920.7432 | P28: Yla-Katrina | Q28: 308.3166667 | R28: 308826.9333 | S28: 247920.7432
A29: Nakyun | B29: 160 | C29: 160859 | D29: 144773.1 | P29: Grand Total | Q29: 277.2371741 | R29: 277725.0782 | S29: 221759.5544
A30: Janita | B30: 193 | C30: 193122 | D30: 171878.58
A31: Kaur | B31: 155 | C31: 155741 | D31: 124592.8
A32: Shari | B32: 96 | C32: 96704 | D32: 76396.16
A33: Shari | B33: 390 | C33: 390366 | D33: 324003.78
A34: Yla-Katrina | B34: 185 | C34: 185196 | D34: 162972.48
A35: Denise | B35: 498 | C35: 498495 | D35: 378856.2
A36: Richard | B36: 209 | C36: 209973 | D36: 149080.83
A37: Carol | B37: 250 | C37: 250643 | D37: 223072.27
A38: Michelle | B38: 418 | C38: 418673 | D38: 297257.83
A39: Nakyun | B39: 193 | C39: 193274 | D39: 154619.2
A40: Ewelina | B40: 255 | C40: 255856 | D40: 184216.32
A41: Janita | B41: 315 | C41: 315776 | D41: 258936.32
A42: Nelia | B42: 241 | C42: 241548 | D42: 178745.52
A43: Mi | B43: 125 | C43: 125433 | D43: 100346.4
A44: Nakyun | B44: 372 | C44: 372365 | D44: 301615.65
A45: Manavbir | B45: 309 | C45: 309851 | D45: 232388.25
A46: Janita | B46: 266 | C46: 266403 | D46: 197138.22
A47: Manavbir | B47: 448 | C47: 448224 | D47: 345132.48
A48: Shari | B48: 109 | C48: 109997 | D48: 96797.36
A49: Manavbir | B49: 53 | C49: 53865 | D49: 38244.15
A50: Mi | B50: 105 | C50: 105027 | D50: 79820.52
A51: Craig | B51: 211 | C51: 211577 | D51: 158682.75
A52: Nelia | B52: 286 | C52: 286226 | D52: 228980.8
A53: Shari | B53: 481 | C53: 481771 | D53: 351692.83
A54: Michael | B54: 266 | C54: 266460 | D54: 210503.4
A55: Elain | B55: 328 | C55: 328934 | D55: 263147.2
A56: Nelia | B56: 194 | C56: 194843 | D56: 155874.4
A57: Gianna | B57: 366 | C57: 366227 | D57: 267345.71
A58: Denise | B58: 108 | C58: 108046 | D58: 86436.8
A59: Denise | B59: 251 | C59: 251015 | D59: 208342.45
A60: Jason | B60: 315 | C60: 315040 | D60: 255182.4
A61: Craig | B61: 458 | C61: 458925 | D61: 357961.5
A62: Richard | B62: 80 | C62: 80911 | D62: 64728.8
A63: Craig | B63: 109 | C63: 109871 | D63: 94489.06
A64: Debra | B64: 182 | C64: 182009 | D64: 152887.56
A65: Ewelina | B65: 476 | C65: 476420 | D65: 352550.8
A66: Manavbir | B66: 53 | C66: 53912 | D66: 46903.44
A67: Richard | B67: 307 | C67: 307166 | D67: 239589.48
A68: Sarah | B68: 77 | C68: 77586 | D68: 66723.96
A69: Gianna | B69: 334 | C69: 334613 | D69: 247613.62
A70: Nelia | B70: 176 | C70: 176270 | D70: 142778.7
A71: Sarah | B71: 361 | C71: 361529 | D71: 300069.07
A72: Manavbir | B72: 364 | C72: 364777 | D72: 284526.06
A73: Kaur | B73: 464 | C73: 464402 | D73: 366877.58
A74: Elain | B74: 118 | C74: 118912 | D74: 95129.6
A75: Gianna | B75: 412 | C75: 412097 | D75: 313193.72
A76: Debra | B76: 245 | C76: 245822 | D76: 186824.72
A77: Jason | B77: 112 | C77: 112747 | D77: 84560.25
A78: Shari | B78: 262 | C78: 262648 | D78: 217997.84
A79: Nelia | B79: 404 | C79: 404358 | D79: 363922.2
A80: Sarah | B80: 364 | C80: 364952 | D80: 310209.2
A81: Jason | B81: 146 | C81: 146567 | D81: 115787.93
A82: Mitchell | B82: 232 | C82: 232300 | D82: 199778
A83: Gianna | B83: 397 | C83: 397755 | D83: 322181.55
A84: Jason | B84: 329 | C84: 329310 | D84: 240396.3
A85: Michael | B85: 186 | C85: 186162 | D85: 141483.12
A86: Sarah | B86: 479 | C86: 479524 | D86: 426776.36
A87: Richard | B87: 261 | C87: 261803 | D87: 188498.16
A88: Sarah | B88: 197 | C88: 197409 | D88: 159901.29
A89: Gianna | B89: 224 | C89: 224385 | D89: 166044.9
A90: Mi | B90: 449 | C90: 449644 | D90: 368708.08
A91: Sarah | B91: 308 | C91: 308693 | D91: 262389.05
A92: Michael | B92: 68 | C92: 68480 | D92: 54099.2
A93: Yla-Katrina | B93: 151 | C93: 151640 | D93: 119795.6
A94: Christina | B94: 189 | C94: 189921 | D94: 148138.38
A95: Craig | B95: 348 | C95: 348411 | D95: 271760.58
A96: Mitchell | B96: 321 | C96: 321917 | D96: 244656.92
A97: Mi | B97: 333 | C97: 333409 | D97: 290065.83
A98: Craig | B98: 451 | C98: 451663 | D98: 334230.62
A99: Mitchell | B99: 325 | C99: 325432 | D99: 279871.52
A100: Mi | B100: 345 | C100: 345917 | D100: 266356.09
A101: Nakyun | B101: 311 | C101: 311405 | D101: 239781.85
A102: Nelia | B102: 136 | C102: 136662 | D102: 117529.32
A103: Sarah | B103: 320 | C103: 320822 | D103: 282323.36
A104: Manavbir | B104: 458 | C104: 458772 | D104: 330315.84
A105: Mi | B105: 499 | C105: 499040 | D105: 384260.8
A106: Elain | B106: 192 | C106: 192618 | D106: 142537.32
A107: Mi | B107: 469 | C107: 469848 | D107: 366481.44
A108: Carol | B108: 230 | C108: 230473 | D108: 161331.1
A109: Nakyun | B109: 108 | C109: 108680 | D109: 76076
A110: Michael | B110: 64 | C110: 64450 | D110: 50271
A111: Kaur | B111: 77 | C111: 77782 | D111: 63781.24
A112: Mitchell | B112: 98 | C112: 98640 | D112: 79898.4
A113: Sykes | B113: 430 | C113: 430742 | D113: 318749.08
A114: Carol | B114: 384 | C114: 384922 | D114: 311786.82
A115: Mansa | B115: 110 | C115: 110594 | D115: 80733.62
A116: Richard | B116: 300 | C116: 300987 | D116: 225740.25
A117: Sykes | B117: 479 | C117: 479494 | D117: 388390.14
A118: Christina | B118: 195 | C118: 195218 | D118: 163983.12
A119: Jason | B119: 124 | C119: 124127 | D119: 89371.44
A120: Sarah | B120: 423 | C120: 423292 | D120: 330167.76
A121: Mitchell | B121: 487 | C121: 487970 | D121: 370857.2
A122: Mitchell | B122: 159 | C122: 159752 | D122: 121411.52
A123: Debra | B123: 187 | C123: 187293 | D123: 146088.54
A124: Manavbir | B124: 123 | C124: 123949 | D124: 110314.61
A125: Nakyun | B125: 370 | C125: 370610 | D125: 311312.4
A126: Michelle | B126: 287 | C126: 287075 | D126: 252626
A127: Denise | B127: 312 | C127: 312079 | D127: 271508.73
A128: Mitchell | B128: 116 | C128: 116810 | D128: 105129
A129: Nelia | B129: 380 | C129: 380051 | D129: 334444.88
A130: Mitchell | B130: 155 | C130: 155187 | D130: 121045.86
A131: Michelle | B131: 199 | C131: 199685 | D131: 145770.05
A132: Carol | B132: 117 | C132: 117887 | D132: 106098.3
A133: Christina | B133: 343 | C133: 343726 | D133: 302478.88
A134: Nakyun | B134: 391 | C134: 391203 | D134: 309050.37
A135: Carol | B135: 386 | C135: 386138 | D135: 305049.02
A136: Nelia | B136: 269 | C136: 269412 | D136: 242470.8
A137: Michelle | B137: 400 | C137: 400025 | D137: 340021.25
A138: Mansa | B138: 134 | C138: 134024 | D138: 120621.6
A139: Nelia | B139: 368 | C139: 368591 | D139: 298558.71
A140: Yla-Katrina | B140: 310 | C140: 310932 | D140: 251854.92
A141: Mi | B141: 407 | C141: 407700 | D141: 346545
A142: Jason | B142: 418 | C142: 418121 | D142: 330315.59
A143: Richard | B143: 390 | C143: 390658 | D143: 292993.5
A144: Daniel | B144: 360 | C144: 360778 | D144: 274191.28
A145: Janita | B145: 334 | C145: 334608 | D145: 267686.4
A146: Ewelina | B146: 130 | C146: 130197 | D146: 108063.51
A147: Denise | B147: 97 | C147: 97429 | D147: 86711.81
A148: Janita | B148: 349 | C148: 349386 | D148: 279508.8
A149: Christina | B149: 180 | C149: 180077 | D149: 149463.91
A150: Sykes | B150: 256 | C150: 256472 | D150: 192354
A151: Gianna | B151: 223 | C151: 223812 | D151: 161144.64
A152: Ewelina | B152: 112 | C152: 112375 | D152: 97766.25
A153: Michelle | B153: 436 | C153: 436654 | D153: 379888.98
A154: Kaur | B154: 288 | C154: 288949 | D154: 245606.65
A155: Gianna | B155: 277 | C155: 277126 | D155: 193988.2
A156: Michael | B156: 457 | C156: 457431 | D156: 361370.49
A157: Jason | B157: 422 | C157: 422806 | D157: 295964.2
A158: Craig | B158: 268 | C158: 268910 | D158: 204371.6
A159: Richard | B159: 125 | C159: 125545 | D159: 100436
A160: Denise | B160: 247 | C160: 247754 | D160: 203158.28
A161: Michael | B161: 190 | C161: 190321 | D161: 156063.22
A162: Kaur | B162: 432 | C162: 432206 | D162: 324154.5
A163: Michael | B163: 363 | C163: 363781 | D163: 265560.13
A164: Jason | B164: 318 | C164: 318417 | D164: 241996.92
A165: Yla-Katrina | B165: 420 | C165: 420671 | D165: 378603.9
A166: Nakyun | B166: 465 | C166: 465031 | D166: 334822.32
A167: Mitchell | B167: 84 | C167: 84744 | D167: 76269.6
A168: Sykes | B168: 261 | C168: 261747 | D168: 183222.9
A169: Mi | B169: 181 | C169: 181856 | D169: 152759.04
A170: Michelle | B170: 56 | C170: 56438 | D170: 42328.5
A171: Kaur | B171: 136 | C171: 136789 | D171: 98488.08
A172: Mitchell | B172: 392 | C172: 392462 | D172: 302195.74
A173: Shari | B173: 120 | C173: 120267 | D173: 93808.26
A174: Mansa | B174: 398 | C174: 398475 | D174: 314795.25
A175: Carol | B175: 57 | C175: 57979 | D175: 42904.46
A176: Ewelina | B176: 317 | C176: 317917 | D176: 247975.26
A177: Carol | B177: 404 | C177: 404822 | D177: 336002.26
A178: Denise | B178: 222 | C178: 222636 | D178: 182561.52
A179: Daniel | B179: 230 | C179: 230878 | D179: 173158.5
A180: Yla-Katrina | B180: 312 | C180: 312560 | D180: 231294.4
A181: Carol | B181: 245 | C181: 245278 | D181: 210939.08
A182: Mi | B182: 356 | C182: 356267 | D182: 302826.95
A183: Sarah | B183: 402 | C183: 402983 | D183: 306267.08
A184: Ewelina | B184: 218 | C184: 218463 | D184: 192247.44
A185: Denise | B185: 128 | C185: 128214 | D185: 114110.46
A186: Debra | B186: 60 | C186: 60092 | D186: 51078.2
A187: Janita | B187: 129 | C187: 129953 | D187: 111759.58
A188: Nakyun | B188: 88 | C188: 88690 | D188: 78047.2
A189: Craig | B189: 329 | C189: 329605 | D189: 286756.35
A190: Kaur | B190: 403 | C190: 403284 | D190: 306495.84
A191: Jason | B191: 250 | C191: 250794 | D191: 223206.66
A192: Michelle | B192: 438 | C192: 438743 | D192: 377318.98
A193: Yla-Katrina | B193: 310 | C193: 310385 | D193: 266931.1
A194: Craig | B194: 498 | C194: 498670 | D194: 378989.2
A195: Yla-Katrina | B195: 408 | C195: 408237 | D195: 306177.75
A196: Kaur | B196: 284 | C196: 284189 | D196: 213141.75
A197: Carol | B197: 75 | C197: 75653 | D197: 55226.69
A198: Daniel | B198: 140 | C198: 140278 | D198: 99597.38
A199: Elain | B199: 322 | C199: 322466 | D199: 248298.82
A200: Richard | B200: 128 | C200: 128228 | D200: 92324.16
... 993 more rows

Sheet P(2)P153-155
A1: Flavor | B1: Total Gallons Sold Same Qtr Last Yr
A2: Vanilla | B2: 55343
A3: Chocolate | B3: 76855
A4: Strawberry | B4: 22436
A5: Maple Walnut | B5: 11432
A6: Praline | B6: 14609
A7: Butter Pecan | B7: 16253
A8: Chocolate Chip | B8: 35395
A9: Mint Chocolate Chip | B9: 18935
A10: Cookie Dough | B10: 23443
A11: Rocky Road | B11: 16496
A12: Fudge Swirl | B12: 18394
A13: Peach | B13: 23504
A14: Pumpkin | B14: 0
A15: Marshmellow Fudge | B15: 5392
A16: Coffee | B16: 43235
A17: Mocha Chip | B17: 33235
A18: Rasberry | B18: 0
A19: Watermelon | B19: 19342
A20: Cinnamon Spice | B20: 0

Sheet P153-155(an) (hidden)
A1: Flavor | B1: # Pints Sold Current Quarter | C1: # Gallons Sold Current Quarter | D1: # Tubs Used Current Quarter | E1: Total Sold Current Quarter in Gallons | F1: Current Flavor Gallons as a % of Total | G1: Total Sold Same Quarter Last Year in Gallons | H1: Historical Flavor Gallons as a % of Total | I1: Total Sold Amount Change | J1: Total Sold % Change
A2: Vanilla | B2: 154957 | C2: 6832 | D2: 1013.37 | E2: =B2/A$40+C2+ROUNDDOWN(D2*C$41,0) -> 36334.625 | F2: =E2/E$25 -> 0.0738621796 | G2: 55343 | H2: =G2/G$25 -> 0.1274306411 | I2: =IF(AND(E2="",G2=""),"",E2-G2) -> -19008.375 | J2: =IF(AND(OR(G2="",G2=0),OR(E2="",E2=0)),"",IF(AND(OR(G2=0,G2=""),E2<>0),1,I2/G2)) -> -0.3434648465
A3: Chocolate | B3: 215191 | C3: 17424 | D3: 5954.88 | E3: 103870.875 | F3: 0.2111520134 | G3: 76855 | H3: 0.1769633363 | I3: 27015.875 | J3: 0.351517468
A4: Strawberry | B4: 27503 | C4: 3365 | D4: 1780.98 | E4: 24611.875 | F4: 0.05003180111 | G4: 22436 | H4: 0.05166026171 | I4: 2175.875 | J4: 0.0969814138
A5: Maple Walnut | B5: 57513 | C5: 2701 | D5: 571.6 | E5: 15606.125 | F5: 0.03172462651 | G5: 11432 | H5: 0.02632287894 | I5: 4174.125 | J5: 0.3651263996
A6: Praline | B6: 76236 | C6: 2692 | D6: 730.46 | E6: 19525.5 | F6: 0.03969205648 | G6: 14609 | H6: 0.03363811568 | I6: 4916.5 | J6: 0.3365391197
A7: Butter Pecan | B7: 38361 | C7: 2705 | D7: 136.45 | E7: 8864.125 | F7: 0.0180192748 | G7: 16253 | H7: 0.03742352619 | I7: -7388.875 | J7: -0.4546160709
A8: Chocolate Chip | B8: 99103 | C8: 5309 | D8: 1834.26 | E8: 36038.875 | F8: 0.0732609696 | G8: 35395 | H8: 0.08149915151 | I8: 643.875 | J8: 0.01819112869
A9: Mint Chocolate Chip | B9: 91186 | C9: 1469 | D9: 333.97 | E9: 16206.25 | F9: 0.03294457967 | G9: 18935 | H9: 0.04359899516 | I9: -2728.75 | J9: -0.1441114339
A10: Cookie Dough | B10: 91233 | C10: 3516 | D10: 956.68 | E10: 24486.125 | F10: 0.04977617252 | G10: 23443 | H10: 0.05397894078 | I10: 1043.125 | J10: 0.04449622489
A11: Rocky Road | B11: 46187 | C11: 3889 | D11: 824.78 | E11: 17909.375 | F11: 0.03640674626 | G11: 16496 | H11: 0.03798304854 | I11: 1413.375 | J11: 0.08567986178
A12: Fudge Swirl | B12: 51974 | C12: 2857 | D12: 1122.23 | E12: 20575.75 | F12: 0.04182703803 | G12: 18394 | H12: 0.04235330959 | I12: 2181.75 | J12: 0.1186120474
A13: Peach | B13: 65808 | C13: 1595 | D13: 1175.15 | E13: 21572 | F13: 0.04385224667 | G13: 23504 | H13: 0.05411939701 | I13: -1932 | J13: -0.08219877468
A14: Pumpkin | B14: 0 | C14: 0 | D14: 0 | E14: 0 | F14: 0 | G14: 0 | H14: 0 | I14: =IF(AND(E14="",G14=""),"",E14-G14) -> 0 | J14: =IF(AND(OR(G14="",G14=0),OR(E14="",E14=0)),"",IF(AND(OR(G14=0,G14=""),E14<>0),1,I14/G14)) -> 
A15: Marshmallow Fudge | B15: 8467 | C15: 809 | D15: 239.19 | E15: 4258.375 | F15: 0.008656559935 | G15: 5392 | H15: 0.01241540966 | I15: -1133.625 | J15: -0.2102420252
A16: Coffee | B16: 228592 | C16: 6485 | D16: 2161.73 | E16: 56676 | F16: 0.1152127727 | G16: 43235 | H16: 0.09955123083 | I16: 13441 | J16: 0.310882387
A17: Mocha Chip | B17: 130943 | C17: 4985 | D17: 168.85 | E17: 23040.875 | F17: 0.04683822242 | G17: 33235 | H17: 0.07652561945 | I17: -10194.125 | J17: -0.3067285994
A18: Raspberry | B18: 0 | C18: 0 | D18: 0 | E18: 0 | F18: 0 | G18: 0 | H18: 0 | I18: 0
A19: Watermelon | B19: 54154 | C19: 3181 | D19: 1395.27 | E19: 23902.25 | F19: 0.04858925288 | G19: 19342 | H19: 0.04453613755 | I19: 4560.25 | J19: 0.2357693103
A20: Cinnamon Spice | B20: 0 | C20: 0 | D20: 0 | E20: 0 | F20: 0 | G20: 0 | H20: 0 | I20: 0
A21: Chocolate Fudge | B21: 47952 | C21: 3381 | D21: 170.56 | E21: 11080 | F21: 0.02252377587 | H21: 0 | I21: 11080 | J21: =IF(AND(OR(G21="",G21=0),OR(E21="",E21=0)),"",IF(AND(OR(G21=0,G21=""),E21<>0),1,I21/G21)) -> 1
A22: Cherry Vanilla | B22: 69125 | C22: 3800 | D22: 1492.56 | E22: 27365.625 | F22: 0.05562971156 | H22: 0 | I22: 27365.625 | J22: =IF(AND(OR(G22="",G22=0),OR(E22="",E22=0)),"",IF(AND(OR(G22=0,G22=""),E22<>0),1,I22/G22)) -> 1
H24: % change
D25: Total | E25: =SUM(E2:E22) -> 491924.625 | G25: =SUM(G2:G22) -> 434299 | H25: =E25/G25-1 -> 0.1326865247
D26: Mean | E26: =AVERAGE(E2:E22) -> 23424.98214 | G26: =AVERAGE(G2:G22) -> 22857.84211
D27: Median | E27: =MEDIAN(E2:E22) -> 20575.75 | G27: =MEDIAN(G2:G22) -> 18935
D28: Mode | E28: =MODE(E2:E22) -> 0 | G28: =MODE(G2:G22) -> 0
D29: Stdev | E29: =STDEV(E2:E22) -> 22879.87027 | G29: =STDEV(G2:G22) -> 19514.77383
D30: Skew | E30: =SKEW(E2:E22) -> 2.352722992 | G30: =SKEW(G2:G22) -> 1.331121864
A32: Assumptions/Inputs, Information, and Directions
A33: Compare quarterly ice cream sales volumes (gallons) from all regional locations for this quarter and same quarter last year
A34: Pints and gallons sold to public
A35: 10 gallon tubs sold in store for cones and the like
A36: To eliminate price changes or promotions, volume is used for analysis instead of dollar value of flavors
A37: 1 workbook for this quarter
A38: 1 workbook for historical data
A39: New flavors this year at bottom
A40: 8 | B40: = | C40: 1
A41: 1 | B41: = | C41: 10
A42: When making calculations for Tubs, ROUNDDOWN to the nearest Tub.

Sheet P(3)P155-156
A1: See sheets named SiteX and SiteY

Sheet SiteX
A1: Respondent# | B1: Age Category | C1: Income | D1: #Desserts Out per Month | E1: # Meals out per Month
A2: 100 | B2: 22-25 | C2: 5000 | D2: 4 | E2: 4
A3: 101 | B3: 30-35 | C3: 100000 | D3: 5 | E3: 15
A4: 102 | B4: 26-30 | C4: 75000 | D4: 3 | E4: 24
A5: 103 | B5: 18-21 | C5: 40000 | D5: 0 | E5: 15
A6: 104 | B6: 30-35 | C6: 100000 | D6: 12 | E6: 3
A7: 105 | B7: 26-30 | C7: 50000 | D7: 8 | E7: 19
A8: 106 | B8: 30-35 | C8: 20000 | D8: 1 | E8: 8
A9: 107 | B9: 30-35 | C9: 100000 | D9: 18 | E9: 12
A10: 108 | B10: 30-35 | C10: 20000 | D10: 14 | E10: 6
A11: 109 | B11: 30-35 | C11: 100000 | D11: 4 | E11: 20
A12: 110 | B12: 30-35 | C12: 75000 | D12: 0 | E12: 0
A13: 111 | B13: 18-21 | C13: 30000 | D13: 0 | E13: 6
A14: 112 | B14: 22-25 | C14: 30000 | D14: 4 | E14: 12
A15: 113 | B15: 18-21 | C15: 30000 | D15: 0 | E15: 3
A16: 114 | B16: 18-21 | C16: 5000 | D16: 0 | E16: 5
A17: 115 | B17: over 35 | C17: 50000 | D17: 1 | E17: 7
A18: 116 | B18: 30-35 | C18: 40000 | D18: 1 | E18: 1
A19: 117 | B19: 26-30 | C19: 20000 | D19: 10 | E19: 3
A20: 118 | B20: 30-35 | C20: 100000 | D20: 11 | E20: 13
A21: 119 | B21: 18-21 | C21: 30000 | D21: 0 | E21: 3
A22: 120 | B22: 30-35 | C22: 30000 | D22: 3 | E22: 12
A23: 121 | B23: 26-30 | C23: 75000 | D23: 1 | E23: 20
A24: 122 | B24: 18-21 | C24: 5000 | D24: 0 | E24: 10
A25: 123 | B25: 22-25 | C25: 20000 | D25: 0 | E25: 2
A26: 124 | B26: 18-21 | C26: 10000 | D26: 0 | E26: 0
A27: 125 | B27: 22-25 | C27: 5000 | D27: 13 | E27: 20
A28: 126 | B28: 26-30 | C28: 75000 | D28: 5 | E28: 11
A29: 127 | B29: over 35 | C29: 20000 | D29: 4 | E29: 1
A30: 128 | B30: 22-25 | C30: 5000 | D30: 14 | E30: 6
A31: 129 | B31: over 35 | C31: 100000 | D31: 12 | E31: 13
A32: 130 | B32: 18-21 | C32: 10000 | D32: 0 | E32: 2
A33: 131 | B33: 18-21 | C33: 10000 | D33: 0 | E33: 7
A34: 132 | B34: 26-30 | C34: 100000 | D34: 11 | E34: 6
A35: 133 | B35: 22-25 | C35: 10000 | D35: 3 | E35: 5
A36: 134 | B36: 22-25 | C36: 50000 | D36: 13 | E36: 8
A37: 135 | B37: 22-25 | C37: 20000 | D37: 6 | E37: 3
A38: 136 | B38: 26-30 | C38: 20000 | D38: 6 | E38: 11
A39: 137 | B39: 18-21 | C39: 10000 | D39: 0 | E39: 2
A40: 138 | B40: 30-35 | C40: 75000 | D40: 1 | E40: 3
A41: 139 | B41: 22-25 | C41: 30000 | D41: 20 | E41: 9
A42: 140 | B42: 30-35 | C42: 100000 | D42: 2 | E42: 7
A43: 141 | B43: 18-21 | C43: 5000 | D43: 0 | E43: 4
A44: 142 | B44: 22-25 | C44: 10000 | D44: 8 | E44: 0
A45: 143 | B45: 22-25 | C45: 20000 | D45: 20 | E45: 2
A46: 144 | B46: 30-35 | C46: 20000 | D46: 9 | E46: 3
A47: 145 | B47: 18-21 | C47: 20000 | D47: 0 | E47: 18
A48: 146 | B48: 18-21 | C48: 5000 | D48: 0 | E48: 2
A49: 147 | B49: 26-30 | C49: 5000 | D49: 10 | E49: 3
A50: 148 | B50: 22-25 | C50: 5000 | D50: 15 | E50: 5
A51: 149 | B51: 22-25 | C51: 50000 | D51: 14 | E51: 14
A52: 150 | B52: 22-25 | C52: 40000 | D52: 20 | E52: 23
A53: 151 | B53: 22-25 | C53: 50000 | D53: 13 | E53: 9
A54: 152 | B54: 22-25 | C54: 5000 | D54: 3 | E54: 4
A55: 153 | B55: 18-21 | C55: 40000 | D55: 0 | E55: 9
A56: 154 | B56: 30-35 | C56: 100000 | D56: 3 | E56: 16
A57: 155 | B57: 26-30 | C57: 50000 | D57: 20 | E57: 12
A58: 156 | B58: 18-21 | C58: 30000 | D58: 0 | E58: 2
A59: 157 | B59: 18-21 | C59: 30000 | D59: 0 | E59: 7
A60: 158 | B60: 30-35 | C60: 100000 | D60: 7 | E60: 17
A61: 159 | B61: 26-30 | C61: 30000 | D61: 5 | E61: 11
A62: 160 | B62: 18-21 | C62: 10000 | D62: 0 | E62: 1
A63: 161 | B63: 26-30 | C63: 75000 | D63: 18 | E63: 0
A64: 162 | B64: over 35 | C64: 100000 | D64: 8 | E64: 10
A65: 163 | B65: 30-35 | C65: 5000 | D65: 0 | E65: 3
A66: 164 | B66: 18-21 | C66: 30000 | D66: 0 | E66: 10
A67: 165 | B67: 22-25 | C67: 100000 | D67: 7 | E67: 12
A68: 166 | B68: 30-35 | C68: 5000 | D68: 2 | E68: 2
A69: 167 | B69: over 35 | C69: 50000 | D69: 6 | E69: 7
A70: 168 | B70: 26-30 | C70: 20000 | D70: 1 | E70: 2
A71: 169 | B71: 26-30 | C71: 50000 | D71: 7 | E71: 3
A72: 170 | B72: 26-30 | C72: 30000 | D72: 3 | E72: 8
A73: 171 | B73: 18-21 | C73: 20000 | D73: 0 | E73: 3
A74: 172 | B74: 30-35 | C74: 40000 | D74: 10 | E74: 17
A75: 173 | B75: 26-30 | C75: 30000 | D75: 3 | E75: 4
A76: 174 | B76: 18-21 | C76: 5000 | D76: 0 | E76: 12
A77: 175 | B77: over 35 | C77: 10000 | D77: 20 | E77: 2
A78: 176 | B78: 26-30 | C78: 20000 | D78: 25 | E78: 1
A79: 177 | B79: 18-21 | C79: 5000 | D79: 0 | E79: 1
A80: 178 | B80: 22-25 | C80: 50000 | D80: 5 | E80: 8
A81: 179 | B81: over 35 | C81: 20000 | D81: 1 | E81: 7
A82: 180 | B82: 18-21 | C82: 30000 | D82: 0 | E82: 9
A83: 181 | B83: 30-35 | C83: 100000 | D83: 14 | E83: 15
A84: 182 | B84: 26-30 | C84: 5000 | D84: 2 | E84: 2
A85: 183 | B85: 30-35 | C85: 100000 | D85: 9 | E85: 16
A86: 184 | B86: 26-30 | C86: 20000 | D86: 17 | E86: 2
A87: 185 | B87: 18-21 | C87: 40000 | D87: 0 | E87: 1
A88: 186 | B88: 18-21 | C88: 30000 | D88: 0 | E88: 3
A89: 187 | B89: 18-21 | C89: 30000 | D89: 0 | E89: 6
A90: 188 | B90: 26-30 | C90: 5000 | D90: 18 | E90: 1
A91: 189 | B91: over 35 | C91: 10000 | D91: 8 | E91: 3
A92: 190 | B92: 22-25 | C92: 75000 | D92: 13 | E92: 6
A93: 191 | B93: 18-21 | C93: 10000 | D93: 0 | E93: 4
A94: 192 | B94: 26-30 | C94: 20000 | D94: 11 | E94: 2
A95: 193 | B95: 26-30 | C95: 40000 | D95: 22 | E95: 15
A96: 194 | B96: 18-21 | C96: 10000 | D96: 0 | E96: 5
A97: 195 | B97: 22-25 | C97: 75000 | D97: 17 | E97: 1
A98: 196 | B98: 18-21 | C98: 30000 | D98: 0 | E98: 3
A99: 197 | B99: 22-25 | C99: 75000 | D99: 12 | E99: 4
A100: 198 | B100: 22-25 | C100: 100000 | D100: 16 | E100: 21
A101: 199 | B101: 18-21 | C101: 5000 | D101: 0 | E101: 9
A102: 200 | B102: 18-21 | C102: 40000 | D102: 0 | E102: 9
A103: 201 | B103: over 35 | C103: 100000 | D103: 7 | E103: 2
A104: 202 | B104: 22-25 | C104: 5000 | D104: 4 | E104: 1
A105: 203 | B105: 26-30 | C105: 10000 | D105: 5 | E105: 0
A106: 204 | B106: 26-30 | C106: 75000 | D106: 4 | E106: 7
A107: 205 | B107: 26-30 | C107: 30000 | D107: 4 | E107: 2
A108: 206 | B108: over 35 | C108: 100000 | D108: 0 | E108: 1

Sheet SiteY
A1: Respondent# | B1: Age Category | C1: Income | D1: #Desserts Out per Month | E1: # Meals out per Month
A2: 100 | B2: 30-35 | C2: 75000 | D2: 0 | E2: 15
A3: 101 | B3: 30-35 | C3: 30000 | D3: 13 | E3: 10
A4: 102 | B4: 26-30 | C4: 5000 | D4: 3 | E4: 24
A5: 103 | B5: 18-21 | C5: 20000 | D5: 0 | E5: 5
A6: 104 | B6: 30-35 | C6: 100000 | D6: 4 | E6: 16
A7: 105 | B7: 26-30 | C7: 20000 | D7: 10 | E7: 21
A8: 106 | B8: 30-35 | C8: 75000 | D8: 8 | E8: 8
A9: 107 | B9: 30-35 | C9: 100000 | D9: 9 | E9: 5
A10: 108 | B10: 30-35 | C10: 30000 | D10: 4 | E10: 8
A11: 109 | B11: 30-35 | C11: 75000 | D11: 4 | E11: 15
A12: 110 | B12: 30-35 | C12: 100000 | D12: 5 | E12: 4
A13: 111 | B13: 18-21 | C13: 30000 | D13: 10 | E13: 16
A14: 112 | B14: 22-25 | C14: 5000 | D14: 9 | E14: 16
A15: 113 | B15: 18-21 | C15: 30000 | D15: 0 | E15: 2
A16: 114 | B16: 18-21 | C16: 30000 | D16: 0 | E16: 12
A17: 115 | B17: over 35 | C17: 100000 | D17: 1 | E17: 19
A18: 116 | B18: 30-35 | C18: 100000 | D18: 7 | E18: 3
A19: 117 | B19: 26-30 | C19: 50000 | D19: 5 | E19: 4
A20: 118 | B20: 30-35 | C20: 100000 | D20: 16 | E20: 1
A21: 119 | B21: 18-21 | C21: 20000 | D21: 9 | E21: 9
A22: 120 | B22: 30-35 | C22: 75000 | D22: 12 | E22: 1
A23: 121 | B23: 26-30 | C23: 10000 | D23: 1 | E23: 24
A24: 122 | B24: 18-21 | C24: 5000 | D24: 11 | E24: 9
A25: 123 | B25: 30-35 | C25: 40000 | D25: 0 | E25: 7
A26: 124 | B26: 30-35 | C26: 30000 | D26: 15 | E26: 12
A27: 125 | B27: 22-25 | C27: 50000 | D27: 2 | E27: 16
A28: 126 | B28: over 35 | C28: 10000 | D28: 4 | E28: 2
A29: 127 | B29: over 35 | C29: 40000 | D29: 11 | E29: 3
A30: 128 | B30: 22-25 | C30: 30000 | D30: 14 | E30: 16
A31: 129 | B31: over 35 | C31: 40000 | D31: 9 | E31: 14
A32: 130 | B32: 18-21 | C32: 10000 | D32: 0 | E32: 0
A33: 131 | B33: 18-21 | C33: 10000 | D33: 8 | E33: 12
A34: 132 | B34: 26-30 | C34: 40000 | D34: 0 | E34: 7
A35: 133 | B35: 22-25 | C35: 30000 | D35: 16 | E35: 23
A36: 134 | B36: 22-25 | C36: 30000 | D36: 3 | E36: 28
A37: 135 | B37: 22-25 | C37: 20000 | D37: 6 | E37: 6
A38: 136 | B38: 26-30 | C38: 5000 | D38: 7 | E38: 20
A39: 137 | B39: 18-21 | C39: 20000 | D39: 20 | E39: 8
A40: 138 | B40: 30-35 | C40: 5000 | D40: 7 | E40: 15
A41: 139 | B41: 22-25 | C41: 5000 | D41: 6 | E41: 6
A42: 140 | B42: 30-35 | C42: 40000 | D42: 2 | E42: 14
A43: 141 | B43: 18-21 | C43: 40000 | D43: 7 | E43: 21
A44: 142 | B44: over 35 | C44: 10000 | D44: 5 | E44: 2
A45: 143 | B45: 22-25 | C45: 100000 | D45: 2 | E45: 27
A46: 144 | B46: over 35 | C46: 50000 | D46: 23 | E46: 10
A47: 145 | B47: 18-21 | C47: 10000 | D47: 6 | E47: 8
A48: 146 | B48: 18-21 | C48: 10000 | D48: 18 | E48: 15
A49: 147 | B49: 26-30 | C49: 5000 | D49: 1 | E49: 17
A50: 148 | B50: 22-25 | C50: 10000 | D50: 2 | E50: 4
A51: 149 | B51: 22-25 | C51: 100000 | D51: 3 | E51: 18
A52: 150 | B52: 22-25 | C52: 30000 | D52: 4 | E52: 14
A53: 151 | B53: 22-25 | C53: 30000 | D53: 11 | E53: 27
A54: 152 | B54: 22-25 | C54: 20000 | D54: 2 | E54: 11
A55: 153 | B55: 18-21 | C55: 30000 | D55: 19 | E55: 19
A56: 154 | B56: over 35 | C56: 20000 | D56: 18 | E56: 4
A57: 155 | B57: 26-30 | C57: 30000 | D57: 19 | E57: 10
A58: 156 | B58: 18-21 | C58: 10000 | D58: 5 | E58: 19
A59: 157 | B59: 18-21 | C59: 40000 | D59: 11 | E59: 4
A60: 158 | B60: 30-35 | C60: 100000 | D60: 2 | E60: 3
A61: 159 | B61: 26-30 | C61: 20000 | D61: 0 | E61: 12
A62: 160 | B62: 18-21 | C62: 20000 | D62: 13 | E62: 6
A63: 161 | B63: 26-30 | C63: 40000 | D63: 4 | E63: 2
A64: 162 | B64: over 35 | C64: 50000 | D64: 2 | E64: 2
A65: 163 | B65: 30-35 | C65: 30000 | D65: 9 | E65: 3
A66: 164 | B66: 18-21 | C66: 10000 | D66: 8 | E66: 1
A67: 165 | B67: 22-25 | C67: 75000 | D67: 9 | E67: 10
A68: 166 | B68: 30-35 | C68: 100000 | D68: 7 | E68: 4
A69: 167 | B69: over 35 | C69: 100000 | D69: 14 | E69: 13
A70: 168 | B70: over 35 | C70: 20000 | D70: 0 | E70: 2
A71: 169 | B71: over 35 | C71: 50000 | D71: 1 | E71: 12
A72: 170 | B72: 26-30 | C72: 100000 | D72: 2 | E72: 25
A73: 171 | B73: 18-21 | C73: 20000 | D73: 23 | E73: 14
A74: 172 | B74: 30-35 | C74: 75000 | D74: 17 | E74: 1
A75: 173 | B75: 26-30 | C75: 10000 | D75: 4 | E75: 8
A76: 174 | B76: 18-21 | C76: 5000 | D76: 16 | E76: 20
A77: 175 | B77: over 35 | C77: 10000 | D77: 2 | E77: 1
A78: 176 | B78: 26-30 | C78: 30000 | D78: 8 | E78: 3
A79: 177 | B79: 18-21 | C79: 5000 | D79: 19 | E79: 13
A80: 178 | B80: 22-25 | C80: 5000 | D80: 0 | E80: 5
A81: 179 | B81: over 35 | C81: 100000 | D81: 7 | E81: 17
A82: 180 | B82: 18-21 | C82: 40000 | D82: 14 | E82: 25
A83: 181 | B83: 30-35 | C83: 40000 | D83: 1 | E83: 12
A84: 182 | B84: 26-30 | C84: 30000 | D84: 17 | E84: 11
A85: 183 | B85: 30-35 | C85: 100000 | D85: 2 | E85: 17
A86: 184 | B86: 30-35 | C86: 30000 | D86: 16 | E86: 20
A87: 185 | B87: 18-21 | C87: 5000 | D87: 9 | E87: 0
A88: 186 | B88: 18-21 | C88: 20000 | D88: 1 | E88: 7
A89: 187 | B89: 18-21 | C89: 30000 | D89: 4 | E89: 22
A90: 188 | B90: 26-30 | C90: 100000 | D90: 1 | E90: 26
A91: 189 | B91: over 35 | C91: 100000 | D91: 20 | E91: 9
A92: 190 | B92: 22-25 | C92: 20000 | D92: 5 | E92: 16
A93: 191 | B93: 18-21 | C93: 30000 | D93: 2 | E93: 24
A94: 192 | B94: 26-30 | C94: 100000 | D94: 13 | E94: 24
A95: 193 | B95: 26-30 | C95: 20000 | D95: 0 | E95: 9
A96: 194 | B96: 18-21 | C96: 10000 | D96: 6 | E96: 9
A97: 195 | B97: 22-25 | C97: 5000 | D97: 17 | E97: 20
A98: 196 | B98: 18-21 | C98: 10000 | D98: 0 | E98: 22
A99: 197 | B99: 22-25 | C99: 20000 | D99: 3 | E99: 13
A100: 198 | B100: 22-25 | C100: 100000 | D100: 0 | E100: 5
A101: 199 | B101: 18-21 | C101: 10000 | D101: 6 | E101: 6
A102: 200 | B102: 18-21 | C102: 10000 | D102: 10 | E102: 3
A103: 201 | B103: over 35 | C103: 40000 | D103: 15 | E103: 2
A104: 202 | B104: 22-25 | C104: 75000 | D104: 2 | E104: 7
A105: 203 | B105: 30-35 | C105: 30000 | D105: 6 | E105: 16
A106: 204 | B106: 26-30 | C106: 5000 | D106: 3 | E106: 11
A107: 205 | B107: 30-35 | C107: 100000 | D107: 1 | E107: 8
A108: 206 | B108: over 35 | C108: 10000 | D108: 11 | E108: 7

Sheet P155(an) (hidden)
A1: Assumptions/Inputs, Information, and Directions | D1: Current Total | E1: =SUM(B14:B214) -> 1903250 | H1: Amount Change | I1: % Change
A2: Summarizes Sales in Dollars by Store | D2: Current Mean | E2: =AVERAGE(B14:B214) -> 9468.905473 | F2: Historical Mean | G2: 8817 | H2: =E2-G2 -> 651.9054726 | I2: =H2/G2 -> 0.07393733386
A3: Compare summary to previous year | D3: Current Median | E3: =MEDIAN(B14:B214) -> 9250 | F3: Historical Median | G3: 8000 | H3: =E3-G3 -> 1250 | I3: =H3/G3 -> 0.15625
A4: Numbers are rounded to the thousands position | D4: Current Mode | E4: =MODE(B14:B214) -> 5500 | F4: Historical Mode | G4: 5500 | H4: =E4-G4 -> 0 | I4: =H4/G4 -> 0
A5: Compare sales by store with SUM, MEAN, MEDIAN, MODE, STDEV | D5: Current Stdev | E5: =STDEV(B14:B214) -> 5347.776715 | F5: Historical Standard Deviation | G5: 6920 | H5: =E5-G5 -> -1572.223285 | I5: =H5/G5 -> -0.2271998966
A6: Historical Mean | B6: 8817 | D6: Current Skew | E6: =SKEW(B14:B214) -> 0.02133641057
A7: Historical Median | B7: 8000
A8: Historical Mode | B8: 5500 | D8: The Average Sales have jumped by 7.39% and the variation in sales per store has dropped. Average sales are up and this is good; matched with the reduction is sales variation per store (means less variation between sales at store or more consistent sales). In particular more consistent sales reduced future uncertainty and helps managers plan with more ease. For these reasons, things are better for this quarter as compared to the same quarter last year.
A9: Historical Standard Deviation | B9: 6920
D10: Total Sales/Total Gallons = Ave. Sales/1 gal = | E10: =E1/'P153-155(an)'!E25 -> 3.868987042
A13: Store# | B13: Sales (Rounded to the Thousands Position
A14: 101 | B14: 2250
A15: 102 | B15: 10500
A16: 103 | B16: 8500
A17: 104 | B17: 12250
A18: 105 | B18: 1500
A19: 106 | B19: 2000
A20: 107 | B20: 11000
A21: 108 | B21: 17750
A22: 109 | B22: 5500
A23: 110 | B23: 13250
A24: 111 | B24: 14500
A25: 112 | B25: 11500
A26: 113 | B26: 8250
A27: 114 | B27: 12000
A28: 115 | B28: 16500
A29: 116 | B29: 17000
A30: 117 | B30: 1750
A31: 118 | B31: 8000
A32: 119 | B32: 9500
A33: 120 | B33: 2000
A34: 121 | B34: 750
A35: 122 | B35: 18500
A36: 123 | B36: 14750
A37: 124 | B37: 2250
A38: 125 | B38: 16500
A39: 126 | B39: 15000
A40: 127 | B40: 1750
A41: 128 | B41: 2500
A42: 129 | B42: 5750
A43: 130 | B43: 7500
A44: 131 | B44: 4250
A45: 132 | B45: 7000
A46: 133 | B46: 6000
A47: 134 | B47: 13500
A48: 135 | B48: 8750
A49: 136 | B49: 10500
A50: 137 | B50: 16750
A51: 138 | B51: 6500
A52: 139 | B52: 4000
A53: 140 | B53: 17500
A54: 141 | B54: 12750
A55: 142 | B55: 6750
A56: 143 | B56: 9000
A57: 144 | B57: 12500
A58: 145 | B58: 2250
A59: 146 | B59: 7000
A60: 147 | B60: 14750
A61: 148 | B61: 10250
A62: 149 | B62: 7250
A63: 150 | B63: 11250
A64: 151 | B64: 7750
A65: 152 | B65: 14750
A66: 153 | B66: 1750
A67: 154 | B67: 5500
A68: 155 | B68: 17250
A69: 156 | B69: 6500
A70: 157 | B70: 5000
A71: 158 | B71: 12250
A72: 159 | B72: 16500
A73: 160 | B73: 4250
A74: 161 | B74: 16000
A75: 162 | B75: 3500
A76: 163 | B76: 1000
A77: 164 | B77: 14000
A78: 165 | B78: 15250
A79: 166 | B79: 5750
A80: 167 | B80: 5500
A81: 168 | B81: 10750
A82: 169 | B82: 16000
A83: 170 | B83: 2250
A84: 171 | B84: 15250
A85: 172 | B85: 16250
A86: 173 | B86: 3500
A87: 174 | B87: 13750
A88: 175 | B88: 9000
A89: 176 | B89: 4000
A90: 177 | B90: 17250
A91: 178 | B91: 10750
A92: 179 | B92: 17750
A93: 180 | B93: 7250
A94: 181 | B94: 16000
A95: 182 | B95: 15500
A96: 183 | B96: 12250
A97: 184 | B97: 18250
A98: 185 | B98: 11000
A99: 186 | B99: 8000
A100: 187 | B100: 18250
A101: 188 | B101: 11000
A102: 189 | B102: 1500
A103: 190 | B103: 8000
A104: 191 | B104: 0
A105: 192 | B105: 12750
A106: 193 | B106: 10500
A107: 194 | B107: 15750
A108: 195 | B108: 12500
A109: 196 | B109: 9250
A110: 197 | B110: 18250
A111: 198 | B111: 17750
A112: 199 | B112: 18250
A113: 200 | B113: 4750
A114: 201 | B114: 11750
A115: 202 | B115: 9250
A116: 203 | B116: 5500
A117: 204 | B117: 17250
A118: 205 | B118: 8250
A119: 206 | B119: 5500
A120: 207 | B120: 1250
A121: 208 | B121: 9500
A122: 209 | B122: 11750
A123: 210 | B123: 2500
A124: 211 | B124: 18000
A125: 212 | B125: 9500
A126: 213 | B126: 9250
A127: 214 | B127: 1500
A128: 215 | B128: 5000
A129: 216 | B129: 12250
A130: 217 | B130: 14500
A131: 218 | B131: 15000
A132: 219 | B132: 13250
A133: 220 | B133: 16250
A134: 221 | B134: 14500
A135: 222 | B135: 17250
A136: 223 | B136: 15250
A137: 224 | B137: 18000
A138: 225 | B138: 6250
A139: 226 | B139: 3750
A140: 227 | B140: 9250
A141: 228 | B141: 14750
A142: 229 | B142: 750
A143: 230 | B143: 3000
A144: 231 | B144: 13750
A145: 232 | B145: 250
A146: 233 | B146: 18250
A147: 234 | B147: 14250
A148: 235 | B148: 14750
A149: 236 | B149: 15000
A150: 237 | B150: 8500
A151: 238 | B151: 3500
A152: 239 | B152: 6750
A153: 240 | B153: 3750
A154: 241 | B154: 1250
A155: 242 | B155: 2500
A156: 243 | B156: 10500
A157: 244 | B157: 3750
A158: 245 | B158: 5750
A159: 246 | B159: 15250
A160: 247 | B160: 9250
A161: 248 | B161: 18000
A162: 249 | B162: 4000
A163: 250 | B163: 8250
A164: 251 | B164: 7750
A165: 252 | B165: 10500
A166: 253 | B166: 6250
A167: 254 | B167: 9500
A168: 255 | B168: 1500
A169: 256 | B169: 3500
A170: 257 | B170: 10500
A171: 258 | B171: 9000
A172: 259 | B172: 13000
A173: 260 | B173: 9500
A174: 261 | B174: 16000
A175: 262 | B175: 3250
A176: 263 | B176: 6500
A177: 264 | B177: 4250
A178: 265 | B178: 8000
A179: 266 | B179: 10000
A180: 267 | B180: 12750
A181: 268 | B181: 10000
A182: 269 | B182: 14000
A183: 270 | B183: 9750
A184: 271 | B184: 7500
A185: 272 | B185: 2000
A186: 273 | B186: 9750
A187: 274 | B187: 16500
A188: 275 | B188: 17000
A189: 276 | B189: 1750
A190: 277 | B190: 1250
A191: 278 | B191: 1250
A192: 279 | B192: 4500
A193: 280 | B193: 13250
A194: 281 | B194: 8000
A195: 282 | B195: 18000
A196: 283 | B196: 2250
A197: 284 | B197: 1500
A198: 285 | B198: 15750
A199: 286 | B199: 13750
A200: 287 | B200: 10250
A201: 288 | B201: 3750
A202: 289 | B202: 4000
... 12 more rows

Sheet P155(an2) (hidden)
A1: Assumptions/Inputs, Information, Directions
A2: Open resturant that specializes in fine cuisine and specialty deserts
A3: We must decide where to located: Location, Location, Location!
A4: Location 1: | B4: Near large retail area
B5: Fringe of affluent suburbs
A6: Location 2: | B6: Downtaown district
A7: Highered Local Market Resecrh Firm to find out: | B7: Demogarphics
B8: Specific dining habits
A10: Age Category | B10: Income
A11: 18-21 | B11: 5000
A12: 22-25 | B12: 10000
A13: 26-30 | B13: 20000
A14: 30-35 | B14: 30000
A15: over 35 | B15: 40000
B16: 50000
B17: 75000
B18: 100000

Sheet P155(an3) (hidden)
A1: SiteX
A2: Respondent# | B2: Age Category | C2: Income | D2: #Desserts Out per Month | E2: ="Rank "&D2 -> Rank #Desserts Out per Month | F2: # Meals out per Month | G2: ="Rank "&F2 -> Rank # Meals out per Month
A3: 100 | B3: 22-25 | C3: 5000 | D3: 4 | E3: =RANK(D3,D$3:D$109) -> 50 | F3: 4 | G3: =RANK(F3,F$3:F$109) -> 59
A4: 101 | B4: 30-35 | C4: 100000 | D4: 5 | E4: 45 | F4: 15 | G4: 13
A5: 102 | B5: 26-30 | C5: 75000 | D5: 3 | E5: 57 | F5: 24 | G5: 1
A6: 103 | B6: 18-21 | C6: 40000 | D6: 0 | E6: 74 | F6: 15 | G6: 13
A7: 104 | B7: 30-35 | C7: 100000 | D7: 12 | E7: 23 | F7: 3 | G7: 65
A8: 105 | B8: 26-30 | C8: 50000 | D8: 8 | E8: 34 | F8: 19 | G8: 7
A9: 106 | B9: 30-35 | C9: 20000 | D9: 1 | E9: 67 | F9: 8 | G9: 38
A10: 107 | B10: 30-35 | C10: 100000 | D10: 18 | E10: 8 | F10: 12 | G10: 20
A11: 108 | B11: 30-35 | C11: 20000 | D11: 14 | E11: 15 | F11: 6 | G11: 49
A12: 109 | B12: 30-35 | C12: 100000 | D12: 4 | E12: 50 | F12: 20 | G12: 4
A13: 110 | B13: 30-35 | C13: 75000 | D13: 0 | E13: 74 | F13: 0 | G13: 103
A14: 111 | B14: 18-21 | C14: 30000 | D14: 0 | E14: 74 | F14: 6 | G14: 49
A15: 112 | B15: 22-25 | C15: 30000 | D15: 4 | E15: 50 | F15: 12 | G15: 20
A16: 113 | B16: 18-21 | C16: 30000 | D16: 0 | E16: 74 | F16: 3 | G16: 65
A17: 114 | B17: 18-21 | C17: 5000 | D17: 0 | E17: 74 | F17: 5 | G17: 55
A18: 115 | B18: over 35 | C18: 50000 | D18: 1 | E18: 67 | F18: 7 | G18: 42
A19: 116 | B19: 30-35 | C19: 40000 | D19: 1 | E19: 67 | F19: 1 | G19: 93
A20: 117 | B20: 26-30 | C20: 20000 | D20: 10 | E20: 29 | F20: 3 | G20: 65
A21: 118 | B21: 30-35 | C21: 100000 | D21: 11 | E21: 26 | F21: 13 | G21: 18
A22: 119 | B22: 18-21 | C22: 30000 | D22: 0 | E22: 74 | F22: 3 | G22: 65
A23: 120 | B23: 30-35 | C23: 30000 | D23: 3 | E23: 57 | F23: 12 | G23: 20
A24: 121 | B24: 26-30 | C24: 75000 | D24: 1 | E24: 67 | F24: 20 | G24: 4
A25: 122 | B25: 18-21 | C25: 5000 | D25: 0 | E25: 74 | F25: 10 | G25: 29
A26: 123 | B26: 22-25 | C26: 20000 | D26: 0 | E26: 74 | F26: 2 | G26: 79
A27: 124 | B27: 18-21 | C27: 10000 | D27: 0 | E27: 74 | F27: 0 | G27: 103
A28: 125 | B28: 22-25 | C28: 5000 | D28: 13 | E28: 19 | F28: 20 | G28: 4
A29: 126 | B29: 26-30 | C29: 75000 | D29: 5 | E29: 45 | F29: 11 | G29: 26
A30: 127 | B30: over 35 | C30: 20000 | D30: 4 | E30: 50 | F30: 1 | G30: 93
A31: 128 | B31: 22-25 | C31: 5000 | D31: 14 | E31: 15 | F31: 6 | G31: 49
A32: 129 | B32: over 35 | C32: 100000 | D32: 12 | E32: 23 | F32: 13 | G32: 18
A33: 130 | B33: 18-21 | C33: 10000 | D33: 0 | E33: 74 | F33: 2 | G33: 79
A34: 131 | B34: 18-21 | C34: 10000 | D34: 0 | E34: 74 | F34: 7 | G34: 42
A35: 132 | B35: 26-30 | C35: 100000 | D35: 11 | E35: 26 | F35: 6 | G35: 49
A36: 133 | B36: 22-25 | C36: 10000 | D36: 3 | E36: 57 | F36: 5 | G36: 55
A37: 134 | B37: 22-25 | C37: 50000 | D37: 13 | E37: 19 | F37: 8 | G37: 38
A38: 135 | B38: 22-25 | C38: 20000 | D38: 6 | E38: 42 | F38: 3 | G38: 65
A39: 136 | B39: 26-30 | C39: 20000 | D39: 6 | E39: 42 | F39: 11 | G39: 26
A40: 137 | B40: 18-21 | C40: 10000 | D40: 0 | E40: 74 | F40: 2 | G40: 79
A41: 138 | B41: 30-35 | C41: 75000 | D41: 1 | E41: 67 | F41: 3 | G41: 65
A42: 139 | B42: 22-25 | C42: 30000 | D42: 20 | E42: 3 | F42: 9 | G42: 32
A43: 140 | B43: 30-35 | C43: 100000 | D43: 2 | E43: 64 | F43: 7 | G43: 42
A44: 141 | B44: 18-21 | C44: 5000 | D44: 0 | E44: 74 | F44: 4 | G44: 59
A45: 142 | B45: 22-25 | C45: 10000 | D45: 8 | E45: 34 | F45: 0 | G45: 103
A46: 143 | B46: 22-25 | C46: 20000 | D46: 20 | E46: 3 | F46: 2 | G46: 79
A47: 144 | B47: 30-35 | C47: 20000 | D47: 9 | E47: 32 | F47: 3 | G47: 65
A48: 145 | B48: 18-21 | C48: 20000 | D48: 0 | E48: 74 | F48: 18 | G48: 8
A49: 146 | B49: 18-21 | C49: 5000 | D49: 0 | E49: 74 | F49: 2 | G49: 79
A50: 147 | B50: 26-30 | C50: 5000 | D50: 10 | E50: 29 | F50: 3 | G50: 65
A51: 148 | B51: 22-25 | C51: 5000 | D51: 15 | E51: 14 | F51: 5 | G51: 55
A52: 149 | B52: 22-25 | C52: 50000 | D52: 14 | E52: 15 | F52: 14 | G52: 17
A53: 150 | B53: 22-25 | C53: 40000 | D53: 20 | E53: 3 | F53: 23 | G53: 2
A54: 151 | B54: 22-25 | C54: 50000 | D54: 13 | E54: 19 | F54: 9 | G54: 32
A55: 152 | B55: 22-25 | C55: 5000 | D55: 3 | E55: 57 | F55: 4 | G55: 59
A56: 153 | B56: 18-21 | C56: 40000 | D56: 0 | E56: 74 | F56: 9 | G56: 32
A57: 154 | B57: 30-35 | C57: 100000 | D57: 3 | E57: 57 | F57: 16 | G57: 11
A58: 155 | B58: 26-30 | C58: 50000 | D58: 20 | E58: 3 | F58: 12 | G58: 20
A59: 156 | B59: 18-21 | C59: 30000 | D59: 0 | E59: 74 | F59: 2 | G59: 79
A60: 157 | B60: 18-21 | C60: 30000 | D60: 0 | E60: 74 | F60: 7 | G60: 42
A61: 158 | B61: 30-35 | C61: 100000 | D61: 7 | E61: 38 | F61: 17 | G61: 9
A62: 159 | B62: 26-30 | C62: 30000 | D62: 5 | E62: 45 | F62: 11 | G62: 26
A63: 160 | B63: 18-21 | C63: 10000 | D63: 0 | E63: 74 | F63: 1 | G63: 93
A64: 161 | B64: 26-30 | C64: 75000 | D64: 18 | E64: 8 | F64: 0 | G64: 103
A65: 162 | B65: over 35 | C65: 100000 | D65: 8 | E65: 34 | F65: 10 | G65: 29
A66: 163 | B66: 30-35 | C66: 5000 | D66: 0 | E66: 74 | F66: 3 | G66: 65
A67: 164 | B67: 18-21 | C67: 30000 | D67: 0 | E67: =RANK(D67,D$3:D$109) -> 74 | F67: 10 | G67: =RANK(F67,F$3:F$109) -> 29
A68: 165 | B68: 22-25 | C68: 100000 | D68: 7 | E68: 38 | F68: 12 | G68: 20
A69: 166 | B69: 30-35 | C69: 5000 | D69: 2 | E69: 64 | F69: 2 | G69: 79
A70: 167 | B70: over 35 | C70: 50000 | D70: 6 | E70: 42 | F70: 7 | G70: 42
A71: 168 | B71: 26-30 | C71: 20000 | D71: 1 | E71: 67 | F71: 2 | G71: 79
A72: 169 | B72: 26-30 | C72: 50000 | D72: 7 | E72: 38 | F72: 3 | G72: 65
A73: 170 | B73: 26-30 | C73: 30000 | D73: 3 | E73: 57 | F73: 8 | G73: 38
A74: 171 | B74: 18-21 | C74: 20000 | D74: 0 | E74: 74 | F74: 3 | G74: 65
A75: 172 | B75: 30-35 | C75: 40000 | D75: 10 | E75: 29 | F75: 17 | G75: 9
A76: 173 | B76: 26-30 | C76: 30000 | D76: 3 | E76: 57 | F76: 4 | G76: 59
A77: 174 | B77: 18-21 | C77: 5000 | D77: 0 | E77: 74 | F77: 12 | G77: 20
A78: 175 | B78: over 35 | C78: 10000 | D78: 20 | E78: 3 | F78: 2 | G78: 79
A79: 176 | B79: 26-30 | C79: 20000 | D79: 25 | E79: 1 | F79: 1 | G79: 93
A80: 177 | B80: 18-21 | C80: 5000 | D80: 0 | E80: 74 | F80: 1 | G80: 93
A81: 178 | B81: 22-25 | C81: 50000 | D81: 5 | E81: 45 | F81: 8 | G81: 38
A82: 179 | B82: over 35 | C82: 20000 | D82: 1 | E82: 67 | F82: 7 | G82: 42
A83: 180 | B83: 18-21 | C83: 30000 | D83: 0 | E83: 74 | F83: 9 | G83: 32
A84: 181 | B84: 30-35 | C84: 100000 | D84: 14 | E84: 15 | F84: 15 | G84: 13
A85: 182 | B85: 26-30 | C85: 5000 | D85: 2 | E85: 64 | F85: 2 | G85: 79
A86: 183 | B86: 30-35 | C86: 100000 | D86: 9 | E86: 32 | F86: 16 | G86: 11
A87: 184 | B87: 26-30 | C87: 20000 | D87: 17 | E87: 11 | F87: 2 | G87: 79
A88: 185 | B88: 18-21 | C88: 40000 | D88: 0 | E88: 74 | F88: 1 | G88: 93
A89: 186 | B89: 18-21 | C89: 30000 | D89: 0 | E89: 74 | F89: 3 | G89: 65
A90: 187 | B90: 18-21 | C90: 30000 | D90: 0 | E90: 74 | F90: 6 | G90: 49
A91: 188 | B91: 26-30 | C91: 5000 | D91: 18 | E91: 8 | F91: 1 | G91: 93
A92: 189 | B92: over 35 | C92: 10000 | D92: 8 | E92: 34 | F92: 3 | G92: 65
A93: 190 | B93: 22-25 | C93: 75000 | D93: 13 | E93: 19 | F93: 6 | G93: 49
A94: 191 | B94: 18-21 | C94: 10000 | D94: 0 | E94: 74 | F94: 4 | G94: 59
A95: 192 | B95: 26-30 | C95: 20000 | D95: 11 | E95: 26 | F95: 2 | G95: 79
A96: 193 | B96: 26-30 | C96: 40000 | D96: 22 | E96: 2 | F96: 15 | G96: 13
A97: 194 | B97: 18-21 | C97: 10000 | D97: 0 | E97: 74 | F97: 5 | G97: 55
A98: 195 | B98: 22-25 | C98: 75000 | D98: 17 | E98: 11 | F98: 1 | G98: 93
A99: 196 | B99: 18-21 | C99: 30000 | D99: 0 | E99: 74 | F99: 3 | G99: 65
A100: 197 | B100: 22-25 | C100: 75000 | D100: 12 | E100: 23 | F100: 4 | G100: 59
A101: 198 | B101: 22-25 | C101: 100000 | D101: 16 | E101: 13 | F101: 21 | G101: 3
A102: 199 | B102: 18-21 | C102: 5000 | D102: 0 | E102: 74 | F102: 9 | G102: 32
A103: 200 | B103: 18-21 | C103: 40000 | D103: 0 | E103: 74 | F103: 9 | G103: 32
A104: 201 | B104: over 35 | C104: 100000 | D104: 7 | E104: 38 | F104: 2 | G104: 79
A105: 202 | B105: 22-25 | C105: 5000 | D105: 4 | E105: 50 | F105: 1 | G105: 93
A106: 203 | B106: 26-30 | C106: 10000 | D106: 5 | E106: 45 | F106: 0 | G106: 103
A107: 204 | B107: 26-30 | C107: 75000 | D107: 4 | E107: 50 | F107: 7 | G107: 42
A108: 205 | B108: 26-30 | C108: 30000 | D108: 4 | E108: 50 | F108: 2 | G108: 79
A109: 206 | B109: over 35 | C109: 100000 | D109: 0 | E109: 74 | F109: 1 | G109: 93

Sheet P155(an4) (hidden)
A1: SiteY
A2: Respondent# | B2: Age Category | C2: Income | D2: #Desserts Out per Month | E2: ="Rank "&D2 -> Rank #Desserts Out per Month | F2: # Meals out per Month | G2: ="Rank "&F2 -> Rank # Meals out per Month
A3: 100 | B3: 30-35 | C3: 75000 | D3: 0 | E3: =RANK(D3,D$3:D$109) -> 95 | F3: 15 | G3: =RANK(F3,F$3:F$109) -> 34
A4: 101 | B4: 30-35 | C4: 30000 | D4: 13 | E4: 22 | F4: 10 | G4: 54
A5: 102 | B5: 26-30 | C5: 5000 | D5: 3 | E5: 70 | F5: 24 | G5: 7
A6: 103 | B6: 18-21 | C6: 20000 | D6: 0 | E6: 95 | F6: 5 | G6: 78
A7: 104 | B7: 30-35 | C7: 100000 | D7: 4 | E7: 62 | F7: 16 | G7: 27
A8: 105 | B8: 26-30 | C8: 20000 | D8: 10 | E8: 31 | F8: 21 | G8: 14
A9: 106 | B9: 30-35 | C9: 75000 | D9: 8 | E9: 41 | F9: 8 | G9: 63
A10: 107 | B10: 30-35 | C10: 100000 | D10: 9 | E10: 34 | F10: 5 | G10: 78
A11: 108 | B11: 30-35 | C11: 30000 | D11: 4 | E11: 62 | F11: 8 | G11: 63
A12: 109 | B12: 30-35 | C12: 75000 | D12: 4 | E12: 62 | F12: 15 | G12: 34
A13: 110 | B13: 30-35 | C13: 100000 | D13: 5 | E13: 57 | F13: 4 | G13: 82
A14: 111 | B14: 18-21 | C14: 30000 | D14: 10 | E14: 31 | F14: 16 | G14: 27
A15: 112 | B15: 22-25 | C15: 5000 | D15: 9 | E15: 34 | F15: 16 | G15: 27
A16: 113 | B16: 18-21 | C16: 30000 | D16: 0 | E16: 95 | F16: 2 | G16: 94
A17: 114 | B17: 18-21 | C17: 30000 | D17: 0 | E17: 95 | F17: 12 | G17: 45
A18: 115 | B18: over 35 | C18: 100000 | D18: 1 | E18: 87 | F18: 19 | G18: 20
A19: 116 | B19: 30-35 | C19: 100000 | D19: 7 | E19: 45 | F19: 3 | G19: 88
A20: 117 | B20: 26-30 | C20: 50000 | D20: 5 | E20: 57 | F20: 4 | G20: 82
A21: 118 | B21: 30-35 | C21: 100000 | D21: 16 | E21: 13 | F21: 1 | G21: 101
A22: 119 | B22: 18-21 | C22: 20000 | D22: 9 | E22: 34 | F22: 9 | G22: 58
A23: 120 | B23: 30-35 | C23: 75000 | D23: 12 | E23: 25 | F23: 1 | G23: 101
A24: 121 | B24: 26-30 | C24: 10000 | D24: 1 | E24: 87 | F24: 24 | G24: 7
A25: 122 | B25: 18-21 | C25: 5000 | D25: 11 | E25: 26 | F25: 9 | G25: 58
A26: 123 | B26: 30-35 | C26: 40000 | D26: 0 | E26: 95 | F26: 7 | G26: 69
A27: 124 | B27: 30-35 | C27: 30000 | D27: 15 | E27: 17 | F27: 12 | G27: 45
A28: 125 | B28: 22-25 | C28: 50000 | D28: 2 | E28: 75 | F28: 16 | G28: 27
A29: 126 | B29: over 35 | C29: 10000 | D29: 4 | E29: 62 | F29: 2 | G29: 94
A30: 127 | B30: over 35 | C30: 40000 | D30: 11 | E30: 26 | F30: 3 | G30: 88
A31: 128 | B31: 22-25 | C31: 30000 | D31: 14 | E31: 19 | F31: 16 | G31: 27
A32: 129 | B32: over 35 | C32: 40000 | D32: 9 | E32: 34 | F32: 14 | G32: 38
A33: 130 | B33: 18-21 | C33: 10000 | D33: 0 | E33: 95 | F33: 0 | G33: 106
A34: 131 | B34: 18-21 | C34: 10000 | D34: 8 | E34: 41 | F34: 12 | G34: 45
A35: 132 | B35: 26-30 | C35: 40000 | D35: 0 | E35: 95 | F35: 7 | G35: 69
A36: 133 | B36: 22-25 | C36: 30000 | D36: 16 | E36: 13 | F36: 23 | G36: 11
A37: 134 | B37: 22-25 | C37: 30000 | D37: 3 | E37: 70 | F37: 28 | G37: 1
A38: 135 | B38: 22-25 | C38: 20000 | D38: 6 | E38: 51 | F38: 6 | G38: 74
A39: 136 | B39: 26-30 | C39: 5000 | D39: 7 | E39: 45 | F39: 20 | G39: 16
A40: 137 | B40: 18-21 | C40: 20000 | D40: 20 | E40: 3 | F40: 8 | G40: 63
A41: 138 | B41: 30-35 | C41: 5000 | D41: 7 | E41: 45 | F41: 15 | G41: 34
A42: 139 | B42: 22-25 | C42: 5000 | D42: 6 | E42: 51 | F42: 6 | G42: 74
A43: 140 | B43: 30-35 | C43: 40000 | D43: 2 | E43: 75 | F43: 14 | G43: 38
A44: 141 | B44: 18-21 | C44: 40000 | D44: 7 | E44: 45 | F44: 21 | G44: 14
A45: 142 | B45: over 35 | C45: 10000 | D45: 5 | E45: 57 | F45: 2 | G45: 94
A46: 143 | B46: 22-25 | C46: 100000 | D46: 2 | E46: 75 | F46: 27 | G46: 2
A47: 144 | B47: over 35 | C47: 50000 | D47: 23 | E47: 1 | F47: 10 | G47: 54
A48: 145 | B48: 18-21 | C48: 10000 | D48: 6 | E48: 51 | F48: 8 | G48: 63
A49: 146 | B49: 18-21 | C49: 10000 | D49: 18 | E49: 8 | F49: 15 | G49: 34
A50: 147 | B50: 26-30 | C50: 5000 | D50: 1 | E50: 87 | F50: 17 | G50: 24
A51: 148 | B51: 22-25 | C51: 10000 | D51: 2 | E51: 75 | F51: 4 | G51: 82
A52: 149 | B52: 22-25 | C52: 100000 | D52: 3 | E52: 70 | F52: 18 | G52: 23
A53: 150 | B53: 22-25 | C53: 30000 | D53: 4 | E53: 62 | F53: 14 | G53: 38
A54: 151 | B54: 22-25 | C54: 30000 | D54: 11 | E54: 26 | F54: 27 | G54: 2
A55: 152 | B55: 22-25 | C55: 20000 | D55: 2 | E55: 75 | F55: 11 | G55: 51
A56: 153 | B56: 18-21 | C56: 30000 | D56: 19 | E56: 5 | F56: 19 | G56: 20
A57: 154 | B57: over 35 | C57: 20000 | D57: 18 | E57: 8 | F57: 4 | G57: 82
A58: 155 | B58: 26-30 | C58: 30000 | D58: 19 | E58: 5 | F58: 10 | G58: 54
A59: 156 | B59: 18-21 | C59: 10000 | D59: 5 | E59: 57 | F59: 19 | G59: 20
A60: 157 | B60: 18-21 | C60: 40000 | D60: 11 | E60: 26 | F60: 4 | G60: 82
A61: 158 | B61: 30-35 | C61: 100000 | D61: 2 | E61: 75 | F61: 3 | G61: 88
A62: 159 | B62: 26-30 | C62: 20000 | D62: 0 | E62: 95 | F62: 12 | G62: 45
A63: 160 | B63: 18-21 | C63: 20000 | D63: 13 | E63: 22 | F63: 6 | G63: 74
A64: 161 | B64: 26-30 | C64: 40000 | D64: 4 | E64: 62 | F64: 2 | G64: 94
A65: 162 | B65: over 35 | C65: 50000 | D65: 2 | E65: 75 | F65: 2 | G65: 94
A66: 163 | B66: 30-35 | C66: 30000 | D66: 9 | E66: 34 | F66: 3 | G66: 88
A67: 164 | B67: 18-21 | C67: 10000 | D67: 8 | E67: =RANK(D67,D$3:D$109) -> 41 | F67: 1 | G67: =RANK(F67,F$3:F$109) -> 101
A68: 165 | B68: 22-25 | C68: 75000 | D68: 9 | E68: 34 | F68: 10 | G68: 54
A69: 166 | B69: 30-35 | C69: 100000 | D69: 7 | E69: 45 | F69: 4 | G69: 82
A70: 167 | B70: over 35 | C70: 100000 | D70: 14 | E70: 19 | F70: 13 | G70: 42
A71: 168 | B71: over 35 | C71: 20000 | D71: 0 | E71: 95 | F71: 2 | G71: 94
A72: 169 | B72: over 35 | C72: 50000 | D72: 1 | E72: 87 | F72: 12 | G72: 45
A73: 170 | B73: 26-30 | C73: 100000 | D73: 2 | E73: 75 | F73: 25 | G73: 5
A74: 171 | B74: 18-21 | C74: 20000 | D74: 23 | E74: 1 | F74: 14 | G74: 38
A75: 172 | B75: 30-35 | C75: 75000 | D75: 17 | E75: 10 | F75: 1 | G75: 101
A76: 173 | B76: 26-30 | C76: 10000 | D76: 4 | E76: 62 | F76: 8 | G76: 63
A77: 174 | B77: 18-21 | C77: 5000 | D77: 16 | E77: 13 | F77: 20 | G77: 16
A78: 175 | B78: over 35 | C78: 10000 | D78: 2 | E78: 75 | F78: 1 | G78: 101
A79: 176 | B79: 26-30 | C79: 30000 | D79: 8 | E79: 41 | F79: 3 | G79: 88
A80: 177 | B80: 18-21 | C80: 5000 | D80: 19 | E80: 5 | F80: 13 | G80: 42
A81: 178 | B81: 22-25 | C81: 5000 | D81: 0 | E81: 95 | F81: 5 | G81: 78
A82: 179 | B82: over 35 | C82: 100000 | D82: 7 | E82: 45 | F82: 17 | G82: 24
A83: 180 | B83: 18-21 | C83: 40000 | D83: 14 | E83: 19 | F83: 25 | G83: 5
A84: 181 | B84: 30-35 | C84: 40000 | D84: 1 | E84: 87 | F84: 12 | G84: 45
A85: 182 | B85: 26-30 | C85: 30000 | D85: 17 | E85: 10 | F85: 11 | G85: 51
A86: 183 | B86: 30-35 | C86: 100000 | D86: 2 | E86: 75 | F86: 17 | G86: 24
A87: 184 | B87: 30-35 | C87: 30000 | D87: 16 | E87: 13 | F87: 20 | G87: 16
A88: 185 | B88: 18-21 | C88: 5000 | D88: 9 | E88: 34 | F88: 0 | G88: 106
A89: 186 | B89: 18-21 | C89: 20000 | D89: 1 | E89: 87 | F89: 7 | G89: 69
A90: 187 | B90: 18-21 | C90: 30000 | D90: 4 | E90: 62 | F90: 22 | G90: 12
A91: 188 | B91: 26-30 | C91: 100000 | D91: 1 | E91: 87 | F91: 26 | G91: 4
A92: 189 | B92: over 35 | C92: 100000 | D92: 20 | E92: 3 | F92: 9 | G92: 58
A93: 190 | B93: 22-25 | C93: 20000 | D93: 5 | E93: 57 | F93: 16 | G93: 27
A94: 191 | B94: 18-21 | C94: 30000 | D94: 2 | E94: 75 | F94: 24 | G94: 7
A95: 192 | B95: 26-30 | C95: 100000 | D95: 13 | E95: 22 | F95: 24 | G95: 7
A96: 193 | B96: 26-30 | C96: 20000 | D96: 0 | E96: 95 | F96: 9 | G96: 58
A97: 194 | B97: 18-21 | C97: 10000 | D97: 6 | E97: 51 | F97: 9 | G97: 58
A98: 195 | B98: 22-25 | C98: 5000 | D98: 17 | E98: 10 | F98: 20 | G98: 16
A99: 196 | B99: 18-21 | C99: 10000 | D99: 0 | E99: 95 | F99: 22 | G99: 12
A100: 197 | B100: 22-25 | C100: 20000 | D100: 3 | E100: 70 | F100: 13 | G100: 42
A101: 198 | B101: 22-25 | C101: 100000 | D101: 0 | E101: 95 | F101: 5 | G101: 78
A102: 199 | B102: 18-21 | C102: 10000 | D102: 6 | E102: 51 | F102: 6 | G102: 74
A103: 200 | B103: 18-21 | C103: 10000 | D103: 10 | E103: 31 | F103: 3 | G103: 88
A104: 201 | B104: over 35 | C104: 40000 | D104: 15 | E104: 17 | F104: 2 | G104: 94
A105: 202 | B105: 22-25 | C105: 75000 | D105: 2 | E105: 75 | F105: 7 | G105: 69
A106: 203 | B106: 30-35 | C106: 30000 | D106: 6 | E106: 51 | F106: 16 | G106: 27
A107: 204 | B107: 26-30 | C107: 5000 | D107: 3 | E107: 70 | F107: 11 | G107: 51
A108: 205 | B108: 30-35 | C108: 100000 | D108: 1 | E108: 87 | F108: 8 | G108: 63
A109: 206 | B109: over 35 | C109: 10000 | D109: 11 | E109: 26 | F109: 7 | G109: 69
A112: Assumption for Condistions Formatting
C113: ='P155(an2)'!B17 -> 75000 | D113: =RIGHT('P156(an2)'!A4,1)+0 -> 5

Sheet P156(an1) (hidden)
A1: Mean and Standard Deviation Analysis
A2: ='P155(an3)'!A$1&" Mean for "&'P155(an3)'!D$2 -> SiteX Mean for #Desserts Out per Month | B2: ='P155(an4)'!A$1&" Mean for "&'P155(an4)'!D$2 -> SiteY Mean for #Desserts Out per Month | C2: Difference (Y - X) | D2: % Difference | E2: ='P155(an3)'!A$1&" Mean for "&'P155(an3)'!F$2 -> SiteX Mean for # Meals out per Month | F2: ='P155(an4)'!A$1&" Mean for "&'P155(an4)'!F$2 -> SiteY Mean for # Meals out per Month | G2: Difference (Y - X) | H2: % Difference
A3: =AVERAGE(xd) -> 6.130841121 | B3: =AVERAGE(yd) -> 7.280373832 | C3: =B3-A3 -> 1.14953271 | D3: =C3/A3 -> 0.1875 | E3: =AVERAGE(xm) -> 7.112149533 | F3: =AVERAGE(ym) -> 11.34579439 | G3: =F3-E3 -> 4.23364486 | H3: =G3/E3 -> 0.5952693824
A4: ='P155(an3)'!A$1&" Standard Deviation for "&'P155(an3)'!D$2 -> SiteX Standard Deviation for #Desserts Out per Month | B4: ='P155(an4)'!A$1&" Standard Deviation for "&'P155(an4)'!D$2 -> SiteY Standard Deviation for #Desserts Out per Month | C4: Difference (Y - X) | D4: % Difference | E4: ='P155(an3)'!A$1&" Standard Deviation for "&'P155(an3)'!F$2 -> SiteX Standard Deviation for # Meals out per Month | F4: ='P155(an4)'!A$1&" Standard Deviation for "&'P155(an4)'!F$2 -> SiteY Standard Deviation for # Meals out per Month | G4: Difference (Y - X) | H4: % Difference
A5: =STDEV(xd) -> 6.668829368 | B5: =STDEV(yd) -> 6.211362674 | C5: =B5-A5 -> -0.4574666932 | D5: =C5/A5 -> -0.06859775051 | E5: =STDEV(xm) -> 5.954746169 | F5: =STDEV(ym) -> 7.537457161 | G5: =F5-E5 -> 1.582710991 | H5: =G5/E5 -> 0.2657898333
A7: ="Four Highest "&'P155(an3)'!D2 -> Four Highest #Desserts Out per Month | E7: From the market research data and our analysis, site Y has a large average for both # of deserts per month and # of meals per month. Although the variation (standard deviation) for the # of meals per month for the Y site is slight higher than it is for the X site, the reverse is true for the # of deserts per month. Lower variation is a great benifit becasue it reduced future uncertainty and helps with planning, but in this case each site has a lower variation and so this statistic will not be used to determine which site should be slected. Thre same trade off can be seen in the low and high analysis. In the end, the dramatic difference in the larger average # of meals per month and larger averange # of deserts per month for the Y site points toward selecting the Y site. A dollar sales per # of deserts and meals might be a next step in the analysis.
B8: SiteX | C8: SiteY
A9: 1 | B9: =LARGE(xd,$A9) -> 25 | C9: =LARGE(yd,$A9) -> 23
A10: 2 | B10: =LARGE(xd,$A10) -> 22 | C10: =LARGE(yd,$A10) -> 23
A11: 3 | B11: =LARGE(xd,$A11) -> 20 | C11: =LARGE(yd,$A11) -> 20
A12: 4 | B12: =LARGE(xd,$A12) -> 20 | C12: =LARGE(yd,$A12) -> 20
A14: ="Ten Lowest "&'P155(an3)'!F2 -> Ten Lowest # Meals out per Month
B15: SiteX | C15: SiteY
A16: 1 | B16: =SMALL(xm,$A16) -> 0 | C16: =SMALL(ym,$A16) -> 0
A17: 2 | B17: 0 | C17: 0
A18: 3 | B18: 0 | C18: 1
A19: 4 | B19: 0 | C19: 1
A20: 5 | B20: 0 | C20: 1
A21: 6 | B21: 1 | C21: 1
A22: 7 | B22: 1 | C22: 1
A23: 8 | B23: 1 | C23: 2
A24: 9 | B24: 1 | C24: 2
A25: 10 | B25: 1 | C25: 2

Sheet P156(an2) (hidden)
A1: Site Y Demographic Analysis
B2: Total number of respondents = | C2: =COUNT('P155(an4)'!A3:A109) -> 107
A3: =">="&'P155(an2)'!B17 -> >=75000 | B3: ="Total number of respondents with incomes at or above "&DOLLAR('P155(an2)'!B17)&" =" -> Total number of respondents with incomes at or above $75,000.00 = | C3: =COUNTIF('P155(an4)'!C3:C109,A3) -> 26
A4: <5 | B4: Total number of respondents who eat less than 5 desserts out each month = | C4: =COUNTIF(yd,A4) -> 46
A5: ="<"&'P155(an2)'!B17 -> <75000 | B5: ="Total number of meals eaten out per month reported by respondents who earn below "&DOLLAR('P155(an2)'!B17)&" =" -> Total number of meals eaten out per month reported by respondents who earn below $75,000.00 = | C5: =SUMIF('P155(an4)'!C3:C109,A5,ym) -> 913
A6: ='P155(an2)'!A13 -> 26-30 | B6: ="Total number of desserts eaten out per month reported by respondents who are in the "&A6&" age category or in the "&A7&" age category =" -> Total number of desserts eaten out per month reported by respondents who are in the 26-30 age category or in the 30-35 age category = | C6: =SUMIF('P155(an4)'!B3:B109,A6,yd)+SUMIF('P155(an4)'!B3:B109,A7,yd) -> 265
A7: ='P155(an2)'!A14 -> 30-35
